{"text_format":"1","workbook":"xlsx","n_sheets":3,"sheets":["Schaltung","Tabelle","Schaltelemente"],"not_rendered":{"charts":0,"images":5,"macros":1,"external_links":0,"defined_names":0,"comments":0,"pivot_tables":0},"unopened":[],"bounds":{"document_bytes":16777216,"sheet_cells":100000,"rows_first":2000,"rows_last":500,"rows_between":2000,"halvings":0,"cell_chars":16384,"cell_head_chars":4096},"cells_cut":0,"cells_raw":0,"read":"whole","date_system":"1900"}

{"sheet":"Schaltung","index":0,"n_rows":48,"n_cols":16384,"rows_kept":48,"cut":false,"hidden":false,"merged":[]}
["Logik-Simulator V1.0 - © 2014 Sebastian Diel"]
[null,null,null,null,null,null,null,null,null,false]
[]
[]
[]
[null,"E1",0]
[null,"E2",0,null,null,null,null,{"$f":"C6","v":0},"E1"]
[null,"E3",0,null,null,null,null,null,null,"&","A",{"$f":"IF(AND(H7=1,H9=1),1,0)","v":0}]
[null,"E4",0,null,null,null,null,{"$f":"C7","v":0},"E2",null,null,null,null,null,null,null,{"$f":"L8","v":0},"E1"]
[null,"E5",1,null,null,null,null,null,null,null,null,null,null,null,null,null,null,null,">=1","A",{"$f":"IF(OR(Q9=1,Q11=1),1,0)","v":1},null,null,null,null,null,null,null,null,null,null,null,null,null,null,null,null,null,null,null,null,null,null,null,null,null,null,null,null,null,null,null,null,null,null,null,null,null,null,null,null,null,null,null,null,null,null,null,null,null,null,null,null,null,null,null,null,null,null,null,null,null,null,null,null,null,null,null,null,null,null,null,null,null,null,null,null,null,null,null,null,null,null,null,null,null,null,null,null,null,null,null,null,null,null,null,null,null,null,null,null,null,null,null,null,null,null,null,null,null,null,null,null,null,null,null,null,null,null,null,null,null,null,null,null,null,null,null,null,null,null,null,null,null,null,null,null,null,null,null,null,null,null,null,null,null,null,null,null,null,null,null,null,null,null,null,null,null,null,null,null,null,null,null,null,null,null,null,null,null,null,null,null,null,null,null,null,null,null,null,null,null,null,null,null,null,null,null,null,null,null,null,null,null,null,null,null,null,null,null,null,null,null,null,null,null,null,null,null,null,null,null,null,null,null,null,null,null,null,null,null,null,null,null,null,null,null,null,null,null,null,null,null,null,{"$f":"$U$10","v":1}]
[null,"E6",0,null,null,null,null,{"$f":"C8","v":0},"E1",null,null,null,null,null,null,null,{"$f":"L12","v":1},"E2"]
[null,null,null,null,null,null,null,null,null,">=1!","A",{"$f":"IF(OR(H11=1,H13=1),0,1)","v":1}]
[null,"A",{"$f":"U10","v":1},null,null,null,null,{"$f":"C6","v":0},"E2"]
[]
[]
[]
[]
[null,null,null,null,null,null,null,null,null,null,null,null,null,null,null,null,null,null,null,null,null,null,null,null,null,null,null,null,null,null,null,null,null,null,null,null,null,null,null,null,null,null,null,null,null,null,null,null,null,null,null,null,null,null,null,null,null,null,null,null,null,null,null,null,null,null,null,null,null,null,null,null,null,null,null,null,null,null,null,null,null,null,null,null,null,null,null,null,null,null,null,null,null,null,null,null,null,null,null,null,null,null,null,null,null,null,null,null,null,null,null,null,null,null,null,null,null,null,null,null,null,null,null,null,null,null,null,null,null,null,null,null,null,null,null,null,null,null,null,null,null,null,null,null,null,null,null,null,null,null,null,null,null,null,null,null,null,null,null,null,null,null,null,null,null,null,null,null,null,null,null,null,null,null,null,null,null,null,null,null,null,null,null,null,null,null,null,null,null,null,null,null,null,null,null,null,null,null,null,null,null,null,null,null,null,null,null,null,null,null,null,null,null,null,null,null,null,null,null,null,null,null,null,null,null,null,null,null,null,null,null,null,null,null,null,null,null,null,null,null,null,null,null,null,null,null,null,null,null,null,null,null,null,null,null,null,null,null,null,null,null,null,null,null,null,null,null,null,null,null,null,null,null,null,null,null,null,null,null,null,null,null,null,null,null,null,null,null,null,null,null,null,null,null,null,null,null,null,null,null,null,null,null,null,null,null,null,null,null,null,null,null,null,null,null,null,null,null,null,null,null,null,null,null,null,null,null,null,null,null,null,null,null,null,null,null,null,null,null,null,null,null,null,null,null,null,null,null,null,null,null,null,null,null,null,null,null,null,null,null,null,null,null,null,null,null,null,null,null,null,null,null,null,null,null,null,null,null,null,null,null,null,null,null,null,null,null,null,null,null,null,null,null,null,null,null,null,null,null,null,null,null,null,null,null,null,null,null,null,null,null,null,null,null,null,null,null,null,null,null,null,null,null,null,null,null,null,null,null,null,null,null,null,null,null,null,null,null,null,null,null,null,null,null,null,null,null,null,null,null,null,null,null,null,null,null,null,null,null,null,null,null,null,null,null,null,null,null,null,null,null,null,null,null,null,null,null,null,null,null,null,null,null,null,null,null,null,null,null,null,null,null,null,null,null,null,null,null,null,null,null,null,null,null,null,null,null,null,null,null,null,null,null,null,null,null,null,null,null,null,null,null,null,null,null,null,null,null,null,null,null,null,null,null,null,null,null,null,null,null,null,null,null,null,null,null,null,null,null,null,null,null,null,null,null,null,null,null,null,null,null,null,null,null,null,null,null,null,null,null,null,null,null,null,null,null,null,null,null,null,null,null,null,null,null,null,null,null,null,null,null,null,null,null,null,null,null,null,null,null,null,null,null,null,null,null,null,null,null,null,null,null,null,null,null,null,null,null,null,null,null,null,null,null,null,null,null,null,null,null,null,null,null,null,null,null,null,null,null,null,null,null,null,null,null,null,null,null,null,null,null,null,null,null,null,null,null,null,null,null,null,null,null,null,null,null,null,null,null,null,null,null,null,null,null,null,null,null,null,null,null,null,null,null,null,null,null,null,null,null,null,null,null,null,null,null,null,null,null,null,null,null,null,null,null,null,null,null,null,null,null,null,null,null,null,null,null,null,null,null,null,null,null,null,null,null,null,null,null,null,null,null,null,null,null,null,null,null,null,null,null,null,null,null,null,null,null,null,null,null,null,null,null,null,null,null,null,null,null,null,null,null,null,null,null,null,null,null,null,null,null,null,null,null,null,null,null,null,null,null,null,null,null,null,null,null,null,null,null,null,null,null,null,null,null,null,null,null,null,null,null,null,null,null,null,null,null,null,null,null,null,null,null,null,null,null,null,null,null,null,null,null,null,null,null,null,null,null,null,null,null,null,null,null,null,null,null,null,null,null,null,null,null,null,null,null,null,null,null,null,null,null,null,null,null,null,null,null,null,null,null,null,null,null,null,null,null,null,null,null,null,null,null,null,null,null,null,null,null,null,null,null,null,null,null,null,null,null,null,null,null,null,null,null,null,null,null,null,null,null,null,null,null,null,null,null,null,null,null,null,null,null,null,null,null,null,null,null,null,null,null,null,null,null,null,null,null,null,null,null,null,null,null,null,null,null,null,null,null,null,null,null,null,null,null,null,null,null,null,null,null,null,null,null,null,null,null,null,null,null,null,null,null,null,null,null,null,null,null,null,null,null,null,null,null,null,null,null,null,null,null,null,null,null,null,null,null,null,null,null,null,null,null,null,null,null,null,null,null,null,null,null,null,null,null,null,null,null,null,null,null,null,null,null,null,null,null,null,null,null,null,null,null,null,null,null,null,null,null,null,null,null,null,null,null,null,null,null,null,null,null,null,null,null,null,null,null,null,null,null,null,null,null,null,null,null,null,null,null,null,null,null,null,null,null,null,null,null,null,null,null,null,null,null,null,null,null,null,null,null,null,null,null,null,null,null,null,null,null,null,null,null,null,null,null,null,null,null,null,null,null,null,null,null,null,null,null,null,null,null,null,null,null,null,null,null,null,null,null,null,null,null,null,null,null,null,null,null,null,null,null,null,null,null,null,null,null,null,null,null,null,null,null,null,null,null,null,null,null,null,null,null,null,null,null,null,null,null,null,null,null,null,null,null,null,null,null,null,null,null,null,null,null,null,null,null,null,null,null,null,null,null,null,null,null,null,null,null,null,null,null,null,null,null,null,null,null,null,null,null,null,null,null,null,null,null,null,null,null,null,null,null,null,null,null,null,null,null,null,null,null,null,null,null,null,null,null,null,null,null,null,null,null,null,null,null,null,null,null,null,null,null,null,null,null,null,null,null,null,null,null,null,null,null,null,null,null,null,null,null,null,null,null,null,null,null,null,null,null,null,null,null,null,null,null,null,null,null,null,null,null,null,null,null,null,null,null,null,null,null,null,null,null,null,null,null,null,null,null,null,null,null,null,null,null,null,null,null,null,null,null,null,null,null,null,null,null,null,null,null,null,null,null,null,null,null,null,null,null,null,null,null,null,null,null,null,null,null,null,null,null,null,null,null,null,null,null,null,null,null,null,null,null,null,null,null,null,null,null,null,null,null,null,null,null,null,null,null,null,null,null,null,null,null,null,null,null,null,null,null,null,null,null,null,null,null,null,null,null,null,null,null,null,null,null,null,null,null,null,null,null,null,null,null,null,null,null,null,null,null,null,null,null,null,null,null,null,null,null,null,null,null,null,null,null,null,null,null,null,null,null,null,null,null,null,null,null,null,null,null,null,null,null,null,null,null,null,null,null,null,null,null,null,null,null,null,null,null,null,null,null,null,null,null,null,null,null,null,null,null,null,null,null,null,null,null,null,null,null,null,null,null,null,null,null,null,null,null,null,null,null,null,null,null,null,null,null,null,null,null,null,null,null,null,null,null,null,null,null,null,null,null,null,null,null,null,null,null,null,null,null,null,null,null,null,null,null,null,null,null,null,null,null,null,null,null,null,null,null,null,null,null,null,null,null,null,null,null,null,null,null,null,null,null,null,null,null,null,null,null,null,null,null,null,null,null,null,null,null,null,null,null,null,null,null,null,null,null,null,null,null,null,null,null,null,null,null,null,null,null,null,null,null,null,null,null,null,null,null,null,null,null,null,null,null,null,null,null,null,null,null,null,null,null,null,null,null,null,null,null,null,null,null,null,null,null,null,null,null,null,null,null,null,null,null,null,null,null,null,null,null,null,null,null,null,null,null,null,null,null,null,null,null,null,null,null,null,null,null,null,null,null,null,null,null,null,null,null,null,null,null,null,null,null,null,null,null,null,null,null,null,null,null,null,null,null,null,null,null,null,null,null,null,null,null,null,null,null,null,null,null,null,null,null,null,null,null,null,null,null,null,null,null,null,null,null,null,null,null,null,null,null,null,null,null,null,null,null,null,null,null,null,null,null,null,null,null,null,null,null,null,null,null,null,null,null,null,null,null,null,null,null,null,null,null,null,null,null,null,null,null,null,null,null,null,null,null,null,null,null,null,null,null,null,null,null,null,null,null,null,null,null,null,null,null,null,null,null,null,null,null,null,null,null,null,null,null,null,null,null,null,null,null,null,null,null,null,null,null,null,null,null,null,null,null,null,null,null,null,null,null,null,null,null,null,null,null,null,null,null,null,null,null,null,null,null,null,null,null,null,null,null,null,null,null,null,null,null,null,null,null,null,null,null,null,null,null,null,null,null,null,null,null,null,null,null,null,null,null,null,null,null,null,null,null,null,null,null,null,null,null,null,null,null,null,null,null,null,null,null,null,null,null,null,null,null,null,null,null,null,null,null,null,null,null,null,null,null,null,null,null,null,null,null,null,null,null,null,null,null,null,null,null,null,null,null,null,null,null,null,null,null,null,null,null,null,null,null,null,null,null,null,null,null,null,null,null,null,null,null,null,null,null,null,null,null,null,null,null,null,null,null,null,null,null,null,null,null,null,null,null,null,null,null,null,null,null,null,null,null,null,null,null,null,null,null,null,null,null,null,null,null,null,null,null,null,null,null,null,null,null,null,null,null,null,null,null,null,null,null,null,null,null,null,null,null,null,null,null,null,null,null,null,null,null,null,null,null,null,null,null,null,null,null,null,null,null,null,null,null,null,null,null,null,null,null,null,null,null,null,null,null,null,null,null,null,null,null,null,null,null,null,null,null,null,null,null,null,null,null,null,null,null,null,null,null,null,null,null,null,null,null,null,null,null,null,null,null,null,null,null,null,null,null,null,null,null,null,null,null,null,null,null,null,null,null,null,null,null,null,null,null,null,null,null,null,null,null,null,null,null,null,null,null,null,null,null,null,null,null,null,null,null,null,null,null,null,null,null,null,null,null,null,null,null,null,null,null,null,null,null,null,null,null,null,null,null,null,null,null,null,null,null,null,null,null,null,null,null,null,null,null,null,null,null,null,null,null,null,null,null,null,null,null,null,null,null,null,null,null,null,null,null,null,null,null,null,null,null,null,null,null,null,null,null,null,null,null,null,null,null,null,null,null,null,null,null,null,null,null,null,null,null,null,null,null,null,null,null,null,null,null,null,null,null,null,null,null,null,null,null,null,null,null,null,null,null,null,null,null,null,null,null,null,null,null,null,null,null,null,null,null,null,null,null,null,null,null,null,null,null,null,null,null,null,null,null,null,null,null,null,null,null,null,null,null,null,null,null,null,null,null,null,null,null,null,null,null,null,null,null,null,null,null,null,null,null,null,null,null,null,null,null,null,null,null,null,null,null,null,null,null,null,null,null,null,null,null,null,null,null,null,null,null,null,null,null,null,null,null,null,null,null,null,null,null,null,null,null,null,null,null,null,null,null,null,null,null,null,null,null,null,null,null,null,null,null,null,null,null,null,null,null,null,null,null,null,null,null,null,null,null,null,null,null,null,null,null,null,null,null,null,null,null,null,null,null,null,null,null,null,null,null,null,null,null,null,null,null,null,null,null,null,null,null,null,null,null,null,null,null,null,null,null,null,null,null,null,null,null,null,null,null,null,null,null,null,null,null,null,null,null,null,null,null,null,null,null,null,null,null,null,null,null,null,null,null,null,null,null,null,null,null,null,null,null,null,null,null,null,null,null,null,null,null,null,null,null,null,null,null,null,null,null,null,null,null,null,null,null,null,null,null,null,null,null,null,null,null,null,null,null,null,null,null,null,null,null,null,null,null,null,null,null,null,null,null,null,null,null,null,null,null,null,null,null,null,null,null,null,null,null,null,null,null,null,null,null,null,null,null,null,null,null,null,null,null,null,null,null,null,null,null,null,null,null,null,null,null,null,null,null,null,null,null,null,null,null,null,null,null,null,null,null,null,null,null,null,null,null,null,null,null,null,null,null,null,null,null,null,null,null,null,null,null,null,null,null,null,null,null,null,null,null,null,null,null,null,null,null,null,null,null,null,null,null,null,null,null,null,null,null,null,null,null,null,null,null,null,null,null,null,null,null,null,null,null,null,null,null,null,null,null,null,null,null,null,null,null,null,null,null,null,null,null,null,null,null,null,null,null,null,null,null,null,null,null,null,null,null,null,null,null,null,null,null,null,null,null,null,null,null,null,null,null,null,null,null,null,null,null,null,null,null,null,null,null,null,null,null,null,null,null,null,null,null,null,null,null,null,null,null,null,null,null,null,null,null,null,null,null,null,null,null,null,null,null,null,null,null,null,null,null,null,null,null,null,null,null,null,null,null,null,null,null,null,null,null,null,null,null,null,null,null,null,null,null,null,null,null,null,null,null,null,null,null,null,null,null,null,null,null,null,null,null,null,null,null,null,null,null,null,null,null,null,null,null,null,null,null,null,null,null,null,null,null,null,null,null,null,null,null,null,null,null,null,null,null,null,null,null,null,null,null,null,null,null,null,null,null,null,null,null,null,null,null,null,null,null,null,null,null,null,null,null,null,null,null,null,null,null,null,null,null,null,null,null,null,null,null,null,null,null,null,null,null,null,null,null,null,null,null,null,null,null,null,null,null,null,null,null,null,null,null,null,null,null,null,null,null,null,null,null,null,null,null,null,null,null,null,null,null,null,null,null,null,null,null,null,null,null,null,null,null,null,null,null,null,null,null,null,null,null,null,null,null,null,null,null,null,null,null,null,null,null,null,null,null,null,null,null,null,null,null,null,null,null,null,null,null,null,null,null,null,null,null,null,null,null,null,null,null,null,null,null,null,null,null,null,null,null,null,null,null,null,null,null,null,null,null,null,null,null,null,null,null,null,null,null,null,null,null,null,null,null,null,null,null,null,null,null,null,null,null,null,null,null,null,null,null,null,null,null,null,null,null,null,null,null,null,null,null,null,null,null,null,null,null,null,null,null,null,null,null,null,null,null,null,null,null,null,null,null,null,null,null,null,null,null,null,null,null,null,null,null,null,null,null,null,null,null,null,null,null,null,null,null,null,null,null,null,null,null,null,null,null,null,null,null,null,null,null,null,null,null,null,null,null,null,null,null,null,null,null,null,null,null,null,null,null,null,null,null,null,null,null,null,null,null,null,null,null,null,null,null,null,null,null,null,null,null,null,null,null,null,null,null,null,null,null,null,null,null,null,null,null,null,null,null,null,null,null,null,null,null,null,null,null,null,null,null,null,null,null,null,null,null,null,null,null,null,null,null,null,null,null,null,null,null,null,null,null,null,null,null,null,null,null,null,null,null,null,null,null,null,null,null,null,null,null,null,null,null,null,null,null,null,null,null,null,null,null,null,null,null,null,null,null,null,null,null,null,null,null,null,null,null,null,null,null,null,null,null,null,null,null,null,null,null,null,null,null,null,null,null,null,null,null,null,null,null,null,null,null,null,null,null,null,null,null,null,null,null,null,null,null,null,null,null,null,null,null,null,null,null,null,null,null,null,null,null,null,null,null,null,null,null,null,null,null,null,null,null,null,null,null,null,null,null,null,null,null,null,null,null,null,null,null,null,null,null,null,null,null,null,null,null,null,null,null,null,null,null,null,null,null,null,null,null,null,null,null,null,null,null,null,null,null,null,null,null,null,null,null,null,null,null,null,null,null,null,null,null,null,null,null,null,null,null,null,null,null,null,null,null,null,null,null,null,null,null,null,null,null,null,null,null,null,null,null,null,null,null,null,null,null,null,null,null,null,null,null,null,null,null,null,null,null,null,null,null,null,null,null,null,null,null,null,null,null,null,null,null,null,null,null,null,null,null,null,null,null,null,null,null,null,null,null,null,null,null,null,null,null,null,null,null,null,null,null,null,null,null,null,null,null,null,null,null,null,null,null,null,null,null,null,null,null,null,null,null,null,null,null,null,null,null,null,null,null,null,null,null,null,null,null,null,null,null,null,null,null,null,null,null,null,null,null,null,null,null,null,null,null,null,null,null,null,null,null,null,null,null,null,null,null,null,null,null,null,null,null,null,null,null,null,null,null,null,null,null,null,null,null,null,null,null,null,null,null,null,null,null,null,null,null,null,null,null,null,null,null,null,null,null,null,null,null,null,null,null,null,null,null,null,null,null,null,null,null,null,null,null,null,null,null,null,null,null,null,null,null,null,null,null,null,null,null,null,null,null,null,null,null,null,null,null,null,null,null,null,null,null,null,null,null,null,null,null,null,null,null,null,null,null,null,null,null,null,null,null,null,null,null,null,null,null,null,null,null,null,null,null,null,null,null,null,null,null,null,null,null,null,null,null,null,null,null,null,null,null,null,null,null,null,null,null,null,null,null,null,null,null,null,null,null,null,null,null,null,null,null,null,null,null,null,null,null,null,null,null,null,null,null,null,null,null,null,null,null,null,null,null,null,null,null,null,null,null,null,null,null,null,null,null,null,null,null,null,null,null,null,null,null,null,null,null,null,null,null,null,null,null,null,null,null,null,null,null,null,null,null,null,null,null,null,null,null,null,null,null,null,null,null,null,null,null,null,null,null,null,null,null,null,null,null,null,null,null,null,null,null,null,null,null,null,null,null,null,null,null,null,null,null,null,null,null,null,null,null,null,null,null,null,null,null,null,null,null,null,null,null,null,null,null,null,null,null,null,null,null,null,null,null,null,null,null,null,null,null,null,null,null,null,null,null,null,null,null,null,null,null,null,null,null,null,null,null,null,null,null,null,null,null,null,null,null,null,null,null,null,null,null,null,null,null,null,null,null,null,null,null,null,null,null,null,null,null,null,null,null,null,null,null,null,null,null,null,null,null,null,null,null,null,null,null,null,null,null,null,null,null,null,null,null,null,null,null,null,null,null,null,null,null,null,null,null,null,null,null,null,null,null,null,null,null,null,null,null,null,null,null,null,null,null,null,null,null,null,null,null,null,null,null,null,null,null,null,null,null,null,null,null,null,null,null,null,null,null,null,null,null,null,null,null,null,null,null,null,null,null,null,null,null,null,null,null,null,null,null,null,null,null,null,null,null,null,null,null,null,null,null,null,null,null,null,null,null,null,null,null,null,null,null,null,null,null,null,null,null,null,null,null,null,null,null,null,null,null,null,null,null,null,null,null,null,null,null,null,null,null,null,null,null,null,null,null,null,null,null,null,null,null,null,null,null,null,null,null,null,null,null,null,null,null,null,null,null,null,null,null,null,null,null,null,null,null,null,null,null,null,null,null,null,null,null,null,null,null,null,null,null,null,null,null,null,null,null,null,null,null,null,null,null,null,null,null,null,null,null,null,null,null,null,null,null,null,null,null,null,null,null,null,null,null,null,null,null,null,null,null,null,null,null,null,null,null,null,null,null,null,null,null,null,null,null,null,null,null,null,null,null,null,null,null,null,null,null,null,null,null,null,null,null,null,null,null,null,null,null,null,null,null,null,null,null,null,null,null,null,null,null,null,null,null,null,null,null,null,null,null,null,null,null,null,null,null,null,null,null,null,null,null,null,null,null,null,null,null,null,null,null,null,null,null,null,null,null,null,null,null,null,null,null,null,null,null,null,null,null,null,null,null,null,null,null,null,null,null,null,null,null,null,null,null,null,null,null,null,null,null,null,null,null,null,null,null,null,null,null,null,null,null,null,null,null,null,null,null,null,null,null,null,null,null,null,null,null,null,null,null,null,null,null,null,null,null,null,null,null,null,null,null,null,null,null,null,null,null,null,null,null,null,null,null,null,null,null,null,null,null,null,null,null,null,null,null,null,null,null,null,null,null,null,null,null,null,null,null,null,null,null,null,null,null,null,null,null,null,null,null,null,null,null,null,null,null,null,null,null,null,null,null,null,null,null,null,null,null,null,null,null,null,null,null,null,null,null,null,null,null,null,null,null,null,null,null,null,null,null,null,null,null,null,null,null,null,null,null,null,null,null,null,null,null,null,null,null,null,null,null,null,null,null,null,null,null,null,null,null,null,null,null,null,null,null,null,null,null,null,null,null,null,null,null,null,null,null,null,null,null,null,null,null,null,null,null,null,null,null,null,null,null,null,null,null,null,null,null,null,null,null,null,null,null,null,null,null,null,null,null,null,null,null,null,null,null,null,null,null,null,null,null,null,null,null,null,null,null,null,null,null,null,null,null,null,null,null,null,null,null,null,null,null,null,null,null,null,null,null,null,null,null,null,null,null,null,null,null,null,null,null,null,null,null,null,null,null,null,null,null,null,null,null,null,null,null,null,null,null,null,null,null,null,null,null,null,null,null,null,null,null,null,null,null,null,null,null,null,null,null,null,null,null,null,null,null,null,null,null,null,null,null,null,null,null,null,null,null,null,null,null,null,null,null,null,null,null,null,null,null,null,null,null,null,null,null,null,null,null,null,null,null,null,null,null,null,null,null,null,null,null,null,null,null,null,null,null,null,null,null,null,null,null,null,null,null,null,null,null,null,null,null,null,null,null,null,null,null,null,null,null,null,null,null,null,null,null,null,null,null,null,null,null,null,null,null,null,null,null,null,null,null,null,null,null,null,null,null,null,null,null,null,null,null,null,null,null,null,null,null,null,null,null,null,null,null,null,null,null,null,null,null,null,null,null,null,null,null,null,null,null,null,null,null,null,null,null,null,null,null,null,null,null,null,null,null,null,null,null,null,null,null,null,null,null,null,null,null,null,null,null,null,null,null,null,null,null,null,null,null,null,null,null,null,null,null,null,null,null,null,null,null,null,null,null,null,null,null,null,null,null,null,null,null,null,null,null,null,null,null,null,null,null,null,null,null,null,null,null,null,null,null,null,null,null,null,null,null,null,null,null,null,null,null,null,null,null,null,null,null,null,null,null,null,null,null,null,null,null,null,null,null,null,null,null,null,null,null,null,null,null,null,null,null,null,null,null,null,null,null,null,null,null,null,null,null,null,null,null,null,null,null,null,null,null,null,null,null,null,null,null,null,null,null,null,null,null,null,null,null,null,null,null,null,null,null,null,null,null,null,null,null,null,null,null,null,null,null,null,null,null,null,null,null,null,null,null,null,null,null,null,null,null,null,null,null,null,null,null,null,null,null,null,null,null,null,null,null,null,null,null,null,null,null,null,null,null,null,null,null,null,null,null,null,null,null,null,null,null,null,null,null,null,null,null,null,null,null,null,null,null,null,null,null,null,null,null,null,null,null,null,null,null,null,null,null,null,null,null,null,null,null,null,null,null,null,null,null,null,null,null,null,null,null,null,null,null,null,null,null,null,null,null,null,null,null,null,null,null,null,null,null,null,null,null,null,null,null,null,null,null,null,null,null,null,null,null,null,null,null,null,null,null,null,null,null,null,null,null,null,null,null,null,null,null,null,null,null,null,null,null,null,null,null,null,null,null,null,null,null,null,null,null,null,null,null,null,null,null,null,null,null,null,null,null,null,null,null,null,null,null,null,null,null,null,null,null,null,null,null,null,null,null,null,null,null,null,null,null,null,null,null,null,null,null,null,null,null,null,null,null,null,null,null,null,null,null,null,null,null,null,null,null,null,null,null,null,null,null,null,null,null,null,null,null,null,null,null,null,null,null,null,null,null,null,null,null,null,null,null,null,null,null,null,null,null,null,null,null,null,null,null,null,null,null,null,null,null,null,null,null,null,null,null,null,null,null,null,null,null,null,null,null,null,null,null,null,null,null,null,null,null,null,null,null,null,null,null,null,null,null,null,null,null,null,null,null,null,null,null,null,null,null,null,null,null,null,null,null,null,null,null,null,null,null,null,null,null,null,null,null,null,null,null,null,null,null,null,null,null,null,null,null,null,null,null,null,null,null,null,null,null,null,null,null,null,null,null,null,null,null,null,null,null,null,null,null,null,null,null,null,null,null,null,null,null,null,null,null,null,null,null,null,null,null,null,null,null,null,null,null,null,null,null,null,null,null,null,null,null,null,null,null,null,null,null,null,null,null,null,null,null,null,null,null,null,null,null,null,null,null,null,null,null,null,null,null,null,null,null,null,null,null,null,null,null,null,null,null,null,null,null,null,null,null,null,null,null,null,null,null,null,null,null,null,null,null,null,null,null,null,null,null,null,null,null,null,null,null,null,null,null,null,null,null,null,null,null,null,null,null,null,null,null,null,null,null,null,null,null,null,null,null,null,null,null,null,null,null,null,null,null,null,null,null,null,null,null,null,null,null,null,null,null,null,null,null,null,null,null,null,null,null,null,null,null,null,null,null,null,null,null,null,null,null,null,null,null,null,null,null,null,null,null,null,null,null,null,null,null,null,null,null,null,null,null,null,null,null,null,null,null,null,null,null,null,null,null,null,null,null,null,null,null,null,null,null,null,null,null,null,null,null,null,null,null,null,null,null,null,null,null,null,null,null,null,null,null,null,null,null,null,null,null,null,null,null,null,null,null,null,null,null,null,null,null,null,null,null,null,null,null,null,null,null,null,null,null,null,null,null,null,null,null,null,null,null,null,null,null,null,null,null,null,null,null,null,null,null,null,null,null,null,null,null,null,null,null,null,null,null,null,null,null,null,null,null,null,null,null,null,null,null,null,null,null,null,null,null,null,null,null,null,null,null,null,null,null,null,null,null,null,null,null,null,null,null,null,null,null,null,null,null,null,null,null,null,null,null,null,null,null,null,null,null,null,null,null,null,null,null,null,null,null,null,null,null,null,null,null,null,null,null,null,null,null,null,null,null,null,null,null,null,null,null,null,null,null,null,null,null,null,null,null,null,null,null,null,null,null,null,null,null,null,null,null,null,null,null,null,null,null,null,null,null,null,null,null,null,null,null,null,null,null,null,null,null,null,null,null,null,null,null,null,null,null,null,null,null,null,null,null,null,null,null,null,null,null,null,null,null,null,null,null,null,null,null,null,null,null,null,null,null,null,null,null,null,null,null,null,null,null,null,null,null,null,null,null,null,null,null,null,null,null,null,null,null,null,null,null,null,null,null,null,null,null,null,null,null,null,null,null,null,null,null,null,null,null,null,null,null,null,null,null,null,null,null,null,null,null,null,null,null,null,null,null,null,null,null,null,null,null,null,null,null,null,null,null,null,null,null,null,null,null,null,null,null,null,null,null,null,null,null,null,null,null,null,null,null,null,null,null,null,null,null,null,null,null,null,null,null,null,null,null,null,null,null,null,null,null,null,null,null,null,null,null,null,null,null,null,null,null,null,null,null,null,null,null,null,null,null,null,null,null,null,null,null,null,null,null,null,null,null,null,null,null,null,null,null,null,null,null,null,null,null,null,null,null,null,null,null,null,null,null,null,null,null,null,null,null,null,null,null,null,null,null,null,null,null,null,null,null,null,null,null,null,null,null,null,null,null,null,null,null,null,null,null,null,null,null,null,null,null,null,null,null,null,null,null,null,null,null,null,null,null,null,null,null,null,null,null,null,null,null,null,null,null,null,null,null,null,null,null,null,null,null,null,null,null,null,null,null,null,null,null,null,null,null,null,null,null,null,null,null,null,null,null,null,null,null,null,null,null,null,null,null,null,null,null,null,null,null,null,null,null,null,null,null,null,null,null,null,null,null,null,null,null,null,null,null,null,null,null,null,null,null,null,null,null,null,null,null,null,null,null,null,null,null,null,null,null,null,null,null,null,null,null,null,null,null,null,null,null,null,null,null,null,null,null,null,null,null,null,null,null,null,null,null,null,null,null,null,null,null,null,null,null,null,null,null,null,null,null,null,null,null,null,null,null,null,null,null,null,null,null,null,null,null,null,null,null,null,null,null,null,null,null,null,null,null,null,null,null,null,null,null,null,null,null,null,null,null,null,null,null,null,null,null,null,null,null,null,null,null,null,null,null,null,null,null,null,null,null,null,null,null,null,null,null,null,null,null,null,null,null,null,null,null,null,null,null,null,null,null,null,null,null,null,null,null,null,null,null,null,null,null,null,null,null,null,null,null,null,null,null,null,null,null,null,null,null,null,null,null,null,null,null,null,null,null,null,null,null,null,null,null,null,null,null,null,null,null,null,null,null,null,null,null,null,null,null,null,null,null,null,null,null,null,null,null,null,null,null,null,null,null,null,null,null,null,null,null,null,null,null,null,null,null,null,null,null,null,null,null,null,null,null,null,null,null,null,null,null,null,null,null,null,null,null,null,null,null,null,null,null,null,null,null,null,null,null,null,null,null,null,null,null,null,null,null,null,null,null,null,null,null,null,null,null,null,null,null,null,null,null,null,null,null,null,null,null,null,null,null,null,null,null,null,null,null,null,null,null,null,null,null,null,null,null,null,null,null,null,null,null,null,null,null,null,null,null,null,null,null,null,null,null,null,null,null,null,null,null,null,null,null,null,null,null,null,null,null,null,null,null,null,null,null,null,null,null,null,null,null,null,null,null,null,null,null,null,null,null,null,null,null,null,null,null,null,null,null,null,null,null,null,null,null,null,null,null,null,null,null,null,null,null,null,null,null,null,null,null,null,null,null,null,null,null,null,null,null,null,null,null,null,null,null,null,null,null,null,null,null,null,null,null,null,null,null,null,null,null,null,null,null,null,null,null,null,null,null,null,null,null,null,null,null,null,null,null,null,null,null,null,null,null,null,null,null,null,null,null,null,null,null,null,null,null,null,null,null,null,null,null,null,null,null,null,null,null,null,null,null,null,null,null,null,null,null,null,null,null,null,null,null,null,null,null,null,null,null,null,null,null,null,null,null,null,null,null,null,null,null,null,null,null,null,null,null,null,null,null,null,null,null,null,null,null,null,null,null,null,null,null,null,null,null,null,null,null,null,null,null,null,null,null,null,null,null,null,null,null,null,null,null,null,null,null,null,null,null,null,null,null,null,null,null,null,null,null,null,null,null,null,null,null,null,null,null,null,null,null,null,null,null,null,null,null,null,null,null,null,null,null,null,null,null,null,null,null,null,null,null,null,null,null,null,null,null,null,null,null,null,null,null,null,null,null,null,null,null,null,null,null,null,null,null,null,null,null,null,null,null,null,null,null,null,null,null,null,null,null,null,null,null,null,null,null,null,null,null,null,null,null,null,null,null,null,null,null,null,null,null,null,null,null,null,null,null,null,null,null,null,null,null,null,null,null,null,null,null,null,null,null,null,null,null,null,null,null,null,null,null,null,null,null,null,null,null,null,null,null,null,null,null,null,null,null,null,null,null,null,null,null,null,null,null,null,null,null,null,null,null,null,null,null,null,null,null,null,null,null,null,null,null,null,null,null,null,null,null,null,null,null,null,null,null,null,null,null,null,null,null,null,null,null,null,null,null,null,null,null,null,null,null,null,null,null,null,null,null,null,null,null,null,null,null,null,null,null,null,null,null,null,null,null,null,null,null,null,null,null,null,null,null,null,null,null,null,null,null,null,null,null,null,null,null,null,null,null,null,null,null,null,null,null,null,null,null,null,null,null,null,null,null,null,null,null,null,null,null,null,null,null,null,null,null,null,null,null,null,null,null,null,null,null,null,null,null,null,null,null,null,null,null,null,null,null,null,null,null,null,null,null,null,null,null,null,null,null,null,null,null,null,null,null,null,null,null,null,null,null,null,null,null,null,null,null,null,null,null,null,null,null,null,null,null,null,null,null,null,null,null,null,null,null,null,null,null,null,null,null,null,null,null,null,null,null,null,null,null,null,null,null,null,null,null,null,null,null,null,null,null,null,null,null,null,null,null,null,null,null,null,null,null,null,null,null,null,null,null,null,null,null,null,null,null,null,null,null,null,null,null,null,null,null,null,null,null,null,null,null,null,null,null,null,null,null,null,null,null,null,null,null,null,null,null,null,null,null,null,null,null,null,null,null,null,null,null,null,null,null,null,null,null,null,null,null,null,null,null,null,null,null,null,null,null,null,null,null,null,null,null,null,null,null,null,null,null,null,null,null,null,null,null,null,null,null,null,null,null,null,null,null,null,null,null,null,null,null,null,null,null,null,null,null,null,null,null,null,null,null,null,null,null,null,null,null,null,null,null,null,null,null,null,null,null,null,null,null,null,null,null,null,null,null,null,null,null,null,null,null,null,null,null,null,null,null,null,null,null,null,null,null,null,null,null,null,null,null,null,null,null,null,null,null,null,null,null,null,null,null,null,null,null,null,null,null,null,null,null,null,null,null,null,null,null,null,null,null,null,null,null,null,null,null,null,null,null,null,null,null,null,null,null,null,null,null,null,null,null,null,null,null,null,null,null,null,null,null,null,null,null,null,null,null,null,null,null,null,null,null,null,null,null,null,null,null,null,null,null,null,null,null,null,null,null,null,null,null,null,null,null,null,null,null,null,null,null,null,null,null,null,null,null,null,null,null,null,null,null,null,null,null,null,null,null,null,null,null,null,null,null,null,null,null,null,null,null,null,null,null,null,null,null,null,null,null,null,null,null,null,null,null,null,null,null,null,null,null,null,null,null,null,null,null,null,null,null,null,null,null,null,null,null,null,null,null,null,null,null,null,null,null,null,null,null,null,null,null,null,null,null,null,null,null,null,null,null,null,null,null,null,null,null,null,null,null,null,null,null,null,null,null,null,null,null,null,null,null,null,null,null,null,null,null,null,null,null,null,null,null,null,null,null,null,null,null,null,null,null,null,null,null,null,null,null,null,null,null,null,null,null,null,null,null,null,null,null,null,null,null,null,null,null,null,null,null,null,null,null,null,null,null,null,null,null,null,null,null,null,null,null,null,null,null,null,null,null,null,null,null,null,null,null,null,null,null,null,null,null,null,null,null,null,null,null,null,null,null,null,null,null,null,null,null,null,null,null,null,null,null,null,null,null,null,null,null,null,null,null,null,null,null,null,null,null,null,null,null,null,null,null,null,null,null,null,null,null,null,null,null,null,null,null,null,null,null,null,null,null,null,null,null,null,null,null,null,null,null,null,null,null,null,null,null,null,null,null,null,null,null,null,null,null,null,null,null,null,null,null,null,null,null,null,null,null,null,null,null,null,null,null,null,null,null,null,null,null,null,null,null,null,null,null,null,null,null,null,null,null,null,null,null,null,null,null,null,null,null,null,null,null,null,null,null,null,null,null,null,null,null,null,null,null,null,null,null,null,null,null,null,null,null,null,null,null,null,null,null,null,null,null,null,null,null,null,null,null,null,null,null,null,null,null,null,null,null,null,null,null,null,null,null,null,null,null,null,null,null,null,null,null,null,null,null,null,null,null,null,null,null,null,null,null,null,null,null,null,null,null,null,null,null,null,null,null,null,null,null,null,null,null,null,null,null,null,null,null,null,null,null,null,null,null,null,null,null,null,null,null,null,null,null,null,null,null,null,null,null,null,null,null,null,null,null,null,null,null,null,null,null,null,null,null,null,null,null,null,null,null,null,null,null,null,null,null,null,null,null,null,null,null,null,null,null,null,null,null,null,null,null,null,null,null,null,null,null,null,null,null,null,null,null,null,null,null,null,null,null,null,null,null,null,null,null,null,null,null,null,null,null,null,null,null,null,null,null,null,null,null,null,null,null,null,null,null,null,null,null,null,null,null,null,null,null,null,null,null,null,null,null,null,null,null,null,null,null,null,null,null,null,null,null,null,null,null,null,null,null,null,null,null,null,null,null,null,null,null,null,null,null,null,null,null,null,null,null,null,null,null,null,null,null,null,null,null,null,null,null,null,null,null,null,null,null,null,null,null,null,null,null,null,null,null,null,null,null,null,null,null,null,null,null,null,null,null,null,null,null,null,null,null,null,null,null,null,null,null,null,null,null,null,null,null,null,null,null,null,null,null,null,null,null,null,null,null,null,null,null,null,null,null,null,null,null,null,null,null,null,null,null,null,null,null,null,null,null,null,null,null,null,null,null,null,null,null,null,null,null,null,null,null,null,null,null,null,null,null,null,null,null,null,null,null,null,null,null,null,null,null,null,null,null,null,null,null,null,null,null,null,null,null,null,null,null,null,null,null,null,null,null,null,null,null,null,null,null,null,null,null,null,null,null,null,null,null,null,null,null,null,null,null,null,null,null,null,null,null,null,null,null,null,null,null,null,null,null,null,null,null,null,null,null,null,null,null,null,null,null,null,null,null,null,null,null,null,null,null,null,null,null,null,null,null,null,null,null,null,null,null,null,null,null,null,null,null,null,null,null,null,null,null,null,null,null,null,null,null,null,null,null,null,null,null,null,null,null,null,null,null,null,null,null,null,null,null,null,null,null,null,null,null,null,null,null,null,null,null,null,null,null,null,null,null,null,null,null,null,null,null,null,null,null,null,null,null,null,null,null,null,null,null,null,null,null,null,null,null,null,null,null,null,null,null,null,null,null,null,null,null,null,null,null,null,null,null,null,null,null,null,null,null,null,null,null,null,null,null,null,null,null,null,null,null,null,null,null,null,null,null,null,null,null,null,null,null,null,null,null,null,null,null,null,null,null,null,null,null,null,null,null,null,null,null,null,null,null,null,null,null,null,null,null,null,null,null,null,null,null,null,null,null,null,null,null,null,null,null,null,null,null,null,null,null,null,null,null,null,null,null,null,null,null,null,null,null,null,null,null,null,null,null,null,null,null,null,null,null,null,null,null,null,null,null,null,null,null,null,null,null,null,null,null,null,null,null,null,null,null,null,null,null,null,null,null,null,null,null,null,null,null,null,null,null,null,null,null,null,null,null,null,null,null,null,null,null,null,null,null,null,null,null,null,null,null,null,null,null,null,null,null,null,null,null,null,null,null,null,null,null,null,null,null,null,null,null,null,null,null,null,null,null,null,null,null,null,null,null,null,null,null,null,null,null,null,null,null,null,null,null,null,null,null,null,null,null,null,null,null,null,null,null,null,null,null,null,null,null,null,null,null,null,null,null,null,null,null,null,null,null,null,null,null,null,null,null,null,null,null,null,null,null,null,null,null,null,null,null,null,null,null,null,null,null,null,null,null,null,null,null,null,null,null,null,null,null,null,null,null,null,null,null,null,null,null,null,null,null,null,null,null,null,null,null,null,null,null,null,null,null,null,null,null,null,null,null,null,null,null,null,null,null,null,null,null,null,null,null,null,null,null,null,null,null,null,null,null,null,null,null,null,null,null,null,null,null,null,null,null,null,null,null,null,null,null,null,null,null,null,null,null,null,null,null,null,null,null,null,null,null,null,null,null,null,null,null,null,null,null,null,null,null,null,null,null,null,null,null,null,null,null,null,null,null,null,null,null,null,null,null,null,null,null,null,null,null,null,null,null,null,null,null,null,null,null,null,null,null,null,null,null,null,null,null,null,null,null,null,null,null,null,null,null,null,null,null,null,null,null,null,null,null,null,null,null,null,null,null,null,null,null,null,null,null,null,null,null,null,null,null,null,null,null,null,null,null,null,null,null,null,null,null,null,null,null,null,null,null,null,null,null,null,null,null,null,null,null,null,null,null,null,null,null,null,null,null,null,null,null,null,null,null,null,null,null,null,null,null,null,null,null,null,null,null,null,null,null,null,null,null,null,null,null,null,null,null,null,null,null,null,null,null,null,null,null,null,null,null,null,null,null,null,null,null,null,null,null,null,null,null,null,null,null,null,null,null,null,null,null,null,null,null,null,null,null,null,null,null,null,null,null,null,null,null,null,null,null,null,null,null,null,null,null,null,null,null,null,null,null,null,null,null,null,null,null,null,null,null,null,null,null,null,null,null,null,null,null,null,null,null,null,null,null,null,null,null,null,null,null,null,null,null,null,null,null,null,null,null,null,null,null,null,null,null,null,null,null,null,null,null,null,null,null,null,null,null,null,null,null,null,null,null,null,null,null,null,null,null,null,null,null,null,null,null,null,null,null,null,null,null,null,null,null,null,null,null,null,null,null,null,null,null,null,null,null,null,null,null,null,null,null,null,null,null,null,null,null,null,null,null,null,null,null,null,null,null,null,null,null,null,null,null,null,null,null,null,null,null,null,null,null,null,null,null,null,null,null,null,null,null,null,null,null,null,null,null,null,null,null,null,null,null,null,null,null,null,null,null,null,null,null,null,null,null,null,null,null,null,null,null,null,null,null,null,null,null,null,null,null,null,null,null,null,null,null,null,null,null,null,null,null,null,null,null,null,null,null,null,null,null,null,null,null,null,null,null,null,null,null,null,null,null,null,null,null,null,null,null,null,null,null,null,null,null,null,null,null,null,null,null,null,null,null,null,null,null,null,null,null,null,null,null,null,null,null,null,null,null,null,null,null,null,null,null,null,null,null,null,null,null,null,null,null,null,null,null,null,null,null,null,null,null,null,null,null,null,null,null,null,null,null,null,null,null,null,null,null,null,null,null,null,null,null,null,null,null,null,null,null,null,null,null,null,null,null,null,null,null,null,null,null,null,null,null,null,null,null,null,null,null,null,null,null,null,null,null,null,null,null,null,null,null,null,null,null,null,null,null,null,null,null,null,null,null,null,null,null,null,null,null,null,null,null,null,null,null,null,null,null,null,null,null,null,null,null,null,null,null,null,null,null,null,null,null,null,null,null,null,null,null,null,null,null,null,null,null,null,null,null,null,null,null,null,null,null,null,null,null,null,null,null,null,null,null,null,null,null,null,null,null,null,null,null,null,null,null,null,null,null,null,null,null,null,null,null,null,null,null,null,null,null,null,null,null,null,null,null,null,null,null,null,null,null,null,null,null,null,null,null,null,null,null,null,null,null,null,null,null,null,null,null,null,null,null,null,null,null,null,null,null,null,null,null,null,null,null,null,null,null,null,null,null,null,null,null,null,null,null,null,null,null,null,null,null,null,null,null,null,null,null,null,null,null,null,null,null,null,null,null,null,null,null,null,null,null,null,null,null,null,null,null,null,null,null,null,null,null,null,null,null,null,null,null,null,null,null,null,null,null,null,null,null,null,null,null,null,null,null,null,null,null,null,null,null,null,null,null,null,null,null,null,null,null,null,null,null,null,null,null,null,null,null,null,null,null,null,null,null,null,null,null,null,null,null,null,null,null,null,null,null,null,null,null,null,null,null,null,null,null,null,null,null,null,null,null,null,null,null,null,null,null,null,null,null,null,null,null,null,null,null,null,null,null,null,null,null,null,null,null,null,null,null,null,null,null,null,null,null,null,null,null,null,null,null,null,null,null,null,null,null,null,null,null,null,null,null,null,null,null,null,null,null,null,null,null,null,null,null,null,null,null,null,null,null,null,null,null,null,null,null,null,null,null,null,null,null,null,null,null,null,null,null,null,null,null,null,null,null,null,null,null,null,null,null,null,null,null,null,null,null,null,null,null,null,null,null,null,null,null,null,null,null,null,null,null,null,null,null,null,null,null,null,null,null,null,null,null,null,null,null,null,null,null,null,null,null,null,null,null,null,null,null,null,null,null,null,null,null,null,null,null,null,null,null,null,null,null,null,null,null,null,null,null,null,null,null,null,null,null,null,null,null,null,null,null,null,null,null,null,null,null,null,null,null,null,null,null,null,null,null,null,null,null,null,null,null,null,null,null,null,null,null,null,null,null,null,null,null,null,null,null,null,null,null,null,null,null,null,null,null,null,null,null,null,null,null,null,null,null,null,null,null,null,null,null,null,null,null,null,null,null,null,null,null,null,null,null,null,null,null,null,null,null,null,null,null,null,null,null,null,null,null,null,null,null,null,null,null,null,null,null,null,null,null,null,null,null,null,null,null,null,null,null,null,null,null,null,null,null,null,null,null,null,null,null,null,null,null,null,null,null,null,null,null,null,null,null,null,null,null,null,null,null,null,null,null,null,null,null,null,null,null,null,null,null,null,null,null,null,null,null,null,null,null,null,null,null,null,null,null,null,null,null,null,null,null,null,null,null,null,null,null,null,null,null,null,null,null,null,null,null,null,null,null,null,null,null,null,null,null,null,null,null,null,null,null,null,null,null,null,null,null,null,null,null,null,null,null,null,null,null,null,null,null,null,null,null,null,null,null,null,null,null,null,null,null,null,null,null,null,null,null,null,null,null,null,null,null,null,null,null,null,null,null,null,null,null,null,null,null,null,null,null,null,null,null,null,null,null,null,null,null,null,null,null,null,null,null,null,null,null,null,null,null,null,null,null,null,null,null,null,null,null,null,null,null,null,null,null,null,null,null,null,null,null,null,null,null,null,null,null,null,null,null,null,null,null,null,null,null,null,null,null,null,null,null,null,null,null,null,null,null,null,null,null,null,null,null,null,null,null,null,null,null,null,null,null,null,null,null,null,null,null,null,null,null,null,null,null,null,null,null,null,null,null,null,null,null,null,null,null,null,null,null,null,null,null,null,null,null,null,null,null,null,null,null,null,null,null,null,null,null,null,null,null,null,null,null,null,null,null,null,null,null,null,null,null,null,null,null,null,null,null,null,null,null,null,null,null,null,null,null,null,null,null,null,null,null,null,null,null,null,null,null,null,null,null,null,null,null,null,null,null,null,null,null,null,null,null,null,null,null,null,null,null,null,null,null,null,null,null,null,null,null,null,null,null,null,null,null,null,null,null,null,null,null,null,null,null,null,null,null,null,null,null,null,null,null,null,null,null,null,null,null,null,null,null,null,null,null,null,null,null,null,null,null,null,null,null,null,null,null,null,null,null,null,null,null,null,null,null,null,null,null,null,null,null,null,null,null,null,null,null,null,null,null,null,null,null,null,null,null,null,null,null,null,null,null,null,null,null,null,null,null,null,null,null,null,null,null,null,null,null,null,null,null,null,null,null,null,null,null,null,null,null,null,null,null,null,null,null,null,null,null,null,null,null,null,null,null,null,null,null,null,null,null,null,null,null,null,null,null,null,null,null,null,null,null,null,null,null,null,null,null,null,null,null,null,null,null,null,null,null,null,null,null,null,null,null,null,null,null,null,null,null,null,null,null,null,null,null,null,null,null,null,null,null,null,null,null,null,null,null,null,null,null,null,null,null,null,null,null,null,null,null,null,null,null,null,null,null,null,null,null,null,null,null,null,null,null,null,null,null,null,null,null,null,null,null,null,null,null,null,null,null,null,null,null,null,null,null,null,null,null,null,null,null,null,null,null,null,null,null,null,null,null,null,null,null,null,null,null,null,null,null,null,null,null,null,null,null,null,null,null,null,null,null,null,null,null,null,null,null,null,null,null,null,null,null,null,null,null,null,null,null,null,null,null,null,null,null,null,null,null,null,null,null,null,null,null,null,null,null,null,null,null,null,null,null,null,null,null,null,null,null,null,null,null,null,null,null,null,null,null,null,null,null,null,null,null,null,null,null,null,null,null,null,null,null,null,null,null,null,null,null,null,null,null,null,null,null,null,null,null,null,null,null,null,null,null,null,null,null,null,null,null,null,null,null,null,null,null,null,null,null,null,null,null,null,null,null,null,null,null,null,null,null,null,null,null,null,null,null,null,null,null,null,null,null,null,null,null,null,null,null,null,null,null,null,null,null,null,null,null,null,null,null,null,null,null,null,null,null,null,null,null,null,null,null,null,null,null,null,null,null,null,null,null,null,null,null,null,null,null,null,null,null,null,null,null,null,null,null,null,null,null,null,null,null,null,null,null,null,null,null,null,null,null,null,null,null,null,null,null,null,null,null,null,null,null,null,null,null,null,null,null,null,null,null,null,null,null,null,null,null,null,null,null,null,null,null,null,null,null,null,null,null,null,null,null,null,null,null,null,null,null,null,null,null,null,null,null,null,null,null,null,null,null,null,null,null,null,null,null,null,null,null,null,null,null,null,null,null,null,null,null,null,null,null,null,null,null,null,null,null,null,null,null,null,null,null,null,null,null,null,null,null,null,null,null,null,null,null,null,null,null,null,null,null,null,null,null,null,null,null,null,null,null,null,null,null,null,null,null,null,null,null,null,null,null,null,null,null,null,null,null,null,null,null,null,null,null,null,null,null,null,null,null,null,null,null,null,null,null,null,null,null,null,null,null,null,null,null,null,null,null,null,null,null,null,null,null,null,null,null,null,null,null,null,null,null,null,null,null,null,null,null,null,null,null,null,null,null,null,null,null,null,null,null,null,null,null,null,null,null,null,null,null,null,null,null,null,null,null,null,null,null,null,null,null,null,null,null,null,null,null,null,null,null,null,null,null,null,null,null,null,null,null,null,null,null,null,null,null,null,null,null,null,null,null,null,null,null,null,null,null,null,null,null,null,null,null,null,null,null,null,null,null,null,null,null,null,null,null,null,null,null,null,null,null,null,null,null,null,null,null,null,null,null,null,null,null,null,null,null,null,null,null,null,null,null,null,null,null,null,null,null,null,null,null,null,null,null,null,null,null,null,null,null,null,null,null,null,null,null,null,null,null,null,null,null,null,null,null,null,null,null,null,null,null,null,null,null,null,null,null,null,null,null,null,null,null,null,null,null,null,null,null,null,null,null,null,null,null,null,null,null,null,null,null,null,null,null,null,null,null,null,null,null,null,null,null,null,null,null,null,null,null,null,null,null,null,null,null,null,null,null,null,null,null,null,null,null,null,null,null,null,null,null,null,null,null,null,null,null,null,null,null,null,null,null,null,null,null,null,null,null,null,null,null,null,null,null,null,null,null,null,null,null,null,null,null,null,null,null,null,null,null,null,null,null,null,null,null,null,null,null,null,null,null,null,null,null,null,null,null,null,null,null,null,null,null,null,null,null,null,null,null,null,null,null,null,null,null,null,null,null,null,null,null,null,null,null,null,null,null,null,null,null,null,null,null,null,null,null,null,null,null,null,null,null,null,null,null,null,null,null,null,null,null,null,null,null,null,null,null,null,null,null,null,null,null,null,null,null,null,null,null,null,null,null,null,null,null,null,null,null,null,null,null,null,null,null,null,null,null,null,null,null,null,null,null,null,null,null,null,null,null,null,null,null,null,null,null,null,null,null,null,null,null,null,null,null,null,null,null,null,null,null,null,null,null,null,null,null,null,null,null,null,null,null,null,null,null,null,null,null,null,null,null,null,null,null,null,null,null,null,null,null,null,null,null,null,null,null,null,null,null,null,null,null,null,null,null,null,null,null,null,null,null,null,null,null,null,null,null,null,null,null,null,null,null,null,null,null,null,null,null,null,null,null,null,null,null,null,null,null,null,null,null,null,null,null,null,null,null,null,null,null,null,null,null,null,null,null,null,null,null,null,null,null,null,null,null,null,null,null,null,null,null,null,null,null,null,null,null,null,null,null,null,null,null,null,null,null,null,null,null,null,null,null,null,null,null,null,null,null,null,null,null,null,null,null,null,null,null,null,null,null,null,null,null,null,null,null,null,null,null,null,null,null,null,null,null,null,null,null,null,null,null,null,null,null,null,null,null,null,null,null,null,null,null,null,null,null,null,null,null,null,null,null,null,null,null,null,null,null,null,null,null,null,null,null,null,null,null,null,null,null,null,null,null,null,null,null,null,null,null,null,null,null,null,null,null,null,null,null,null,null,null,null,null,null,null,null,null,null,null,null,null,null,null,null,null,null,null,null,null,null,null,null,null,null,null,null,null,null,null,null,null,null,null,null,null,null,null,null,null,null,null,null,null,null,null,null,null,null,null,null,null,null,null,null,null,null,null,null,null,null,null,null,null,null,null,null,null,null,null,null,null,null,null,null,null,null,null,null,null,null,null,null,null,null,null,null,null,null,null,null,null,null,null,null,null,null,null,null,null,null,null,null,null,null,null,null,null,null,null,null,null,null,null,null,null,null,null,null,null,null,null,null,null,null,null,null,null,null,null,null,null,null,null,null,null,null,null,null,null,null,null,null,null,null,null,null,null,null,null,null,null,null,null,null,null,null,null,null,null,null,null,null,null,null,null,null,null,null,null,null,null,null,null,null,null,null,null,null,null,null,null,null,null,null,null,null,null,null,null,null,null,null,null,null,null,null,null,null,null,null,null,null,null,null,null,null,null,null,null,null,null,null,null,null,null,null,null,null,null,null,null,null,null,null,null,null,null,null,null,null,null,null,null,null,null,null,null,null,null,null,null,null,null,null,null,null,null,null,null,null,null,null,null,null,null,null,null,null,null,null,null,null,null,null,null,null,null,null,null,null,null,null,null,null,null,null,null,null,null,null,null,null,null,null,null,null,null,null,null,null,null,null,null,null,null,null,null,null,null,null,null,null,null,null,null,null,null,null,null,null,null,null,null,null,null,null,null,null,null,null,null,null,null,null,null,null,null,null,null,null,null,null,null,null,null,null,null,null,null,null,null,null,null,null,null,null,null,null,null,null,null,null,null,null,null,null,null,null,null,null,null,null,null,null,null,null,null,null,null,null,null,null,null,null,null,null,null,null,null,null,null,null,null,null,null,null,null,null,null,null,null,null,null,null,null,null,null,null,null,null,null,null,null,null,null,null,null,null,null,null,null,null,null,null,null,null,null,null,null,null,null,null,null,null,null,null,null,null,null,null,null,null,null,null,null,null,null,null,null,null,null,null,null,null,null,null,null,null,null,null,null,null,null,null,null,null,null,null,null,null,null,null,null,null,null,null,null,null,null,null,null,null,null,null,null,null,null,null,null,null,null,null,null,null,null,null,null,null,null,null,null,null,null,null,null,null,null,null,null,null,null,null,null,null,null,null,null,null,null,null,null,null,null,null,null,null,null,null,null,null,null,null,null,null,null,null,null,null,null,null,null,null,null,null,null,null,null,null,null,null,null,null,null,null,null,null,null,null,null,null,null,null,null,null,null,null,null,null,null,null,null,null,null,null,null,null,null,null,null,null,null,null,null,null,null,null,null,null,null,null,null,null,null,null,null,null,null,null,null,null,null,null,null,null,null,null,null,null,null,null,null,null,null,null,null,null,null,null,null,null,null,null,null,null,null,null,null,null,null,null,null,null,null,null,null,null,null,null,null,null,null,null,null,null,null,null,null,null,null,null,null,null,null,null,null,null,null,null,null,null,null,null,null,null,null,null,null,null,null,null,null,null,null,null,null,null,null,null,null,null,null,null,null,null,null,null,null,null,null,null,null,null,null,null,null,null,null,null,null,null,null,null,null,null,null,null,null,null,null,null,null,null,null,null,null,null,null,null,null,null,null,null,null,null,null,null,null,null,null,null,null,null,null,null,null,null,null,null,null,null,null,null,null,null,null,null,null,null,null,null,null,null,null,null,null,null,null,null,null,null,null,null,null,null,null,null,null,null,null,null,null,null,null,null,null,null,null,null,null,null,null,null,null,null,null,null,null,null,null,null,null,null,null,null,null,null,null,null,null,null,null,null,null,null,null,null,null,null,null,null,null,null,null,null,null,null,null,null,null,null,null,null,null,null,null,null,null,null,null,null,null,null,null,null,null,null,null,null,null,null,null,null,null,null,null,null,null,null,null,null,null,null,null,null,null,null,null,null,null,null,null,null,null,null,null,null,null,null,null,null,null,null,null,null,null,null,null,null,null,null,null,null,null,null,null,null,null,null,null,null,null,null,null,null,null,null,null,null,null,null,null,null,null,null,null,null,null,null,null,null,null,null,null,null,null,null,null,null,null,null,null,null,null,null,null,null,null,null,null,null,null,null,null,null,null,null,null,null,null,null,null,null,null,null,null,null,null,null,null,null,null,null,null,null,null,null,null,null,null,null,null,null,null,null,null,null,null,null,null,null,null,null,null,null,null,null,null,null,null,null,null,null,null,null,null,null,null,null,null,null,null,null,null,null,null,null,null,null,null,null,null,null,null,null,null,null,null,null,null,null,null,null,null,null,null,null,null,null,null,null,null,null,null,null,null,null,null,null,null,null,null,null,null,null,null,null,null,null,null,null,null,null,null,null,null,null,null,null,null,null,null,null,null,null,null,null,null,null,null,null,null,null,null,null,null,null,null,null,null,null,null,null,null,null,null,null,null,null,null,null,null,null,null,null,null,null,null,null,null,null,null,null,null,null,null,null,null,null,null,null,null,null,null,null,null,null,null,null,null,null,null,null,null,null,null,null,null,null,null,null,null,null,null,null,null,null,null,null,null,null,null,null,null,null,null,null,null,null,null,null,null,null,null,null,null,null,null,null,null,null,null,null,null,null,null,null,null,null,null,null,null,null,null,null,null,null,null,null,null,null,null,null,null,null,null,null,null,null,null,null,null,null,null,null,null,null,null,null,null,null,null,null,null,null,null,null,null,null,null,null,null,null,null,null,null,null,null,null,null,null,null,null,null,null,null,null,null,null,null,null,null,null,null,null,null,null,null,null,null,null,null,null,null,null,null,null,null,null,null,null,null,null,null,null,null,null,null,null,null,null,null,null,null,null,null,null,null,null,null,null,null,null,null,null,null,null,null,null,null,null,null,null,null,null,null,null,null,null,null,null,null,null,null,null,null,null,null,null,null,null,null,null,null,null,null,null,null,null,null,null,null,null,null,null,null,null,null,null,null,null,null,null,null,null,null,null,null,null,null,null,null,null,null,null,null,null,null,null,null,null,null,null,null,null,null,null,null,null,null,null,null,null,null,null,null,null,null,null,null,null,null,null,null,null,null,null,null,null,null,null,null,null,null,null,null,null,null,null,null,null,null,null,null,null,null,null,null,null,null,null,null,null,null,null,null,null,null,null,null,null,null,null,null,null,null,null,null,null,null,null,null,null,null,null,null,null,null,null,null,null,null,null,null,null,null,null,null,null,null,null,null,null,null,null,null,null,null,null,null,null,null,null,null,null,null,null,null,null,null,null,null,null,null,null,null,null,null,null,null,null,null,null,null,null,null,null,null,null,null,null,null,null,null,null,null,null,null,null,null,null,null,null,null,null,null,null,null,null,null,null,null,null,null,null,null,null,null,null,null,null,null,null,null,null,null,null,null,null,null,null,null,null,null,null,null,null,null,null,null,null,null,null,null,null,null,null,null,null,null,null,null,null,null,null,null,null,null,null,null,null,null,null,null,null,null,null,null,null,null,null,null,null,null,null,null,null,null,null,null,null,null,null,null,null,null,null,null,null,null,null,null,null,null,null,null,null,null,null,null,null,null,null,null,null,null,null,null,null,null,null,null,null,null,null,null,null,null,null,null,null,null,null,null,null,null,null,null,null,null,null,null,null,null,null,null,null,null,null,null,null,null,null,null,null,null,null,null,null,null,null,null,null,null,null,null,null,null,null,null,null,null,null,null,null,null,null,null,null,null,null,null,null,null,null,null,null,null,null,null,null,null,null,null,null,null,null,null,null,null,null,null,null,null,null,null,null,null,null,null,null,null,null,null,null,null,null,null,null,null,null,null,null,null,null,null,null,null,null,null,null,null,null,null,null,null,null,null,null,null,null,null,null,null,null,null,null,null,null,null,null,null,null,null,null,null,null,null,null,null,null,null,null,null,null,null,null,null,null,null,null,null,null,null,null,null,null,null,null,null,null,null,null,null,null,null,null,null,null,null,null,null,null,null,null,null,null,null,null,null,null,null,null,null,null,null,null,null,null,null,null,null,null,null,null,null,null,null,null,null,null,null,null,null,null,null,null,null,null,null,null,null,null,null,null,null,null,null,null,null,null,null,null,null,null,null,null,null,null,null,null,null,null,null,null,null,null,null,null,null,null,null,null,null,null,null,null,null,null,null,null,null,null,null,null,null,null,null,null,null,null,null,null,null,null,null,null,null,null,null,null,null,null,null,null,null,null,null,null,null,null,null,null,null,null,null,null,null,null,null,null,null,null,null,null,null,null,null,null,null,null,null,null,null,null,null,null,null,null,null,null,null,null,null,null,null,null,null,null,null,null,null,null,null,null,null,null,null,null,null,null,null,null,null,null,null,null,null,null,null,null,null,null,null,null,null,null,null,null,null,null,null,null,null,null,null,null,null,null,null,null,null,null,null,null,null,null,null,null,null,null,null,null,null,null,null,null,null,null,null,null,null,null,null,null,null,null,null,null,null,null,null,null,null,null,null,null,null,null,null,null,null,null,null,null,null,null,null,null,null,null,null,null,null,null,null,null,null,null,null,null,null,null,null,null,null,null,null,null,null,null,null,null,null,null,null,null,null,null,null,null,null,null,null,null,null,null,null,null,null,null,null,null,null,null,null,null,null,null,null,null,null,null,null,null,null,null,null,null,null,null,null,null,null,null,null,null,null,null,null,null,null,null,null,null,null,null,null,null,null,null,null,null,null,null,null,null,null,null,null,null,null,null,null,null,null,null,null,null,null,null,null,null,null,null,null,null,null,null,null,null,null,null,null,null,null,null,null,null,null,null,null,null,null,null,null,null,null,null,null,null,null,null,null,null,null,null,null,null,null,null,null,null,null,null,null,null,null,null,null,null,null,null,null,null,null,null,null,null,null,null,null,null,null,null,null,null,null,null,null,null,null,null,null,null,null,null,null,null,null,null,null,null,null,null,null,null,null,null,null,null,null,null,null,null,null,null,null,null,null,null,null,null,null,null,null,null,null,null,null,null,null,null,null,null,null,null,null,null,null,null,null,null,null,null,null,null,null,null,null,null,null,null,null,null,null,null,null,null,null,null,null,null,null,null,null,null,null,null,null,null,null,null,null,null,null,null,null,null,null,null,null,null,null,null,null,null,null,null,null,null,null,null,null,null,null,null,null,null,null,null,null,null,null,null,null,null,null,null,null,null,null,null,null,null,null,null,null,null,null,null,null,null,null,null,null,null,null,null,null,null,null,null,null,null,null,null,null,null,null,null,null,null,null,null,null,null,null,null,null,null,null,null,null,null,null,null,null,null,null,null,null,null,null,null,null,null,null,null,null,null,null,null,null,null,null,null,null,null,null,null,null,null,null,null,null,null,null,null,null,null,null,null,null,null,null,null,null,null,null,null,null,null,null,null,null,null,null,null,null,null,null,null,null,null,null,null,null,null,null,null,null,null,null,null,null,null,null,null,null,null,null,null,null,null,null,null,null,null,null,null,null,null,null,null,null,null,null,null,null,null,null,null,null,null,null,null,null,null,null,null,null,null,null,null,null,null,null,null,null,null,null,null,null,null,null,null,null,null,null,null,null,null,null,null,null,null,null,null,null,null,null,null,null,null,null,null,null,null,null,null,null,null,null,null,null,null,null,null,null,null,null,null,null,null,null,null,null,null,null,null,null,null,null,null,null,null,null,null,null,null,null,null,null,null,null,null,null,null,null,null,null,null,null,null,null,null,null,null,null,null,null,null,null,null,null,null,null,null,null,null,null,null,null,null,null,null,null,null,null,null,null,null,null,null,null,null,null,null,null,null,null,null,null,null,null,null,null,null,null,null,null,null,null,null,null,null,null,null,null,null,null,null,null,null,null,null,null,null,null,null,null,null,null,null,null,null,null,null,null,null,null,null,null,null,null,null,null,null,null,null,null,null,null,null,null,null,null,null,null,null,null,null,null,null,null,null,null,null,null,null,null,null,null,null,null,null,null,null,null,null,null,null,null,null,null,null,null,null,null,null,null,null,null,null,null,null,null,null,null,null,null,null,null,null,null,null,null,null,null,null,null,null,null,null,null,null,null,null,null,null,null,null,null,null,null,null,null,null,null,null,null,null,null,null,null,null,null,null,null,null,null,null,null,null,null,null,null,null,null,null,null,null,null,null,null,null,null,null,null,null,null,null,null,null,null,null,null,null,null,null,null,null,null,null,null,null,null,null,null,null,null,null,null,null,null,null,null,null,null,null,null,null,null,null,null,null,null,null,null,null,null,null,null,null,null,null,null,null,null,null,null,null,null,null,null,null,null,null,null,null,null,null,null,null,null,null,null,null,null,null,null,null,null,null,null,null,null,null,null,null,null,null,null,null,null,null,null,null,null,null,null,null,null,null,null,null,null,null,null,null,null,null,null,null,null,null,null,null,null,null,null,null,null,null,null,null,null,null,null,null,null,null,null,null,null,null,null,null,null,null,null,null,null,null,null,null,null,null,null,null,null,null,null,null,null,null,null,null,null,null,null,null,null,null,null,null,null,null,null,null,null,null,null,null,null,null,null,null,null,null,null,null,null,null,null,null,null,null,null,null,null,null,null,null,null,null,null,null,null,null,null,null,null,null,null,null,null,null,null,null,null,null,null,null,null,null,null,null,null,null,null,null,null,null,null,null,null,null,null,null,null,null,null,null,null,null,null,null,null,null,null,null,null,null,null,null,null,null,null,null,null,null,null,null,null,null,null,null,null,null,null,null,null,null,null,null,null,null,null,null,null,null,null,null,null,null,null,null,null,null,null,null,null,null,null,null,null,null,null,null,null,null,null,null,null,null,null,null,null,null,null,null,null,null,null,null,null,null,null,null,null,null,null,null,null,null,null,null,null,null,null,null,null,null,null,null,null,null,null,null,null,null,null,null,null,null,null,null,null,null,null,null,null,null,null,null,null,null,null,null,null,null,null,null,null,null,null,null,null,null,null,null,null,null,null,null,null,null,null,null,null,null,null,null,null,null,null,null,null,null,null,null,null,null,null,null,null,null,null,null,null,null,null,null,null,null,null,null,null,null,null,null,null,null,null,null,null,null,null,null,null,null,null,null,null,null,null,null,null,null,null,null,null,null,null,null,null,null,null,null,null,null,null,null,null,null,null,null,null,null,null,null,null,null,null,null,null,null,null,null,null,null,null,null,null,null,null,null,null,null,null,null,null,null,null,null,null,null,null,null,null,null,null,null,null,null,null,null,null,null,null,null,null,null,null,null,null,null,null,null,null,null,null,null,null,null,null,null,null,null,null,null,null,null,null,null,null,null,null,null,null,null,null,null,null,null,null,null,null,null,null,null,null,null,null,null,null,null,null,null,null,null,null,null,null,null,null,null,null,null,null,null,null,null,null,null,null,null,null,null,null,null,null,null,null,null,null,null,null,null,null,null,null,null,null,null,null,null,null,null,null,null,null,null,null,null,null,null,null,null,null,null,null,null,null,null,null,null,null,null,null,null,null,null,null,null,null,null,null,null,null,null,null,null,null,null,null,null,null,null,null,null,null,null,null,null,null,null,null,null,null,null,null,null,null,null,null,null,null,null,null,null,null,null,null,null,null,null,null,null,null,null,null,null,null,null,null,null,null,null,null,null,null,null,null,null,null,null,null,null,null,null,null,null,null,null,null,null,null,null,null,null,null,null,null,null,null,null,null,null,null,null,null,null,null,null,null,null,null,null,null,null,null,null,null,null,null,null,null,null,null,null,null,null,null,null,null,null,null,null,null,null,null,null,null,null,null,null,null,null,null,null,null,null,null,null,null,null,null,null,null,null,null,null,null,null,null,null,null,null,null,null,null,null,null,null,null,null,null,null,null,null,null,null,null,null,null,null,null,null,null,null,null,null,null,null,null,null,null,null,null,null,null,null,null,null,null,null,null,null,null,null,null,null,null,null,null,null,null,null,null,null,null,null,null,null,null,null,null,null,null,null,null,null,null,null,null,null,null,null,null,null,null,null,null,null,null,null,null,null,null,null,null,null,null,null,null,null,null,null,null,null,null,null,null,null,null,null,null,null,null,null,null,null,null,null,null,null,null,null,null,null,null,null,null,null,null,null,null,null,null,null,null,null,null,null,null,null,null,null,null,null,null,null,null,null,null,null,null,null,null,null,null,null,null,null,null,null,null,null,null,null,null,null,null,null,null,null,null,null,null,null,null,null,null,null,null,null,null,null,null,null,null,null,null,null,null,null,null,null,null,null,null,null,null,null,null,null,null,null,null,null,null,null,null,null,null,null,null,null,null,null,null,null,null,null,null,null,null,null,null,null,null,null,null,null,null,null,null,null,null,null,null,null,null,null,null,null,null,null,null,null,null,null,null,null,null,null,null,null,null,null,null,null,null,null,null,null,null,null,null,null,null,null,null,null,null,null,null,null,null,null,null,null,null,null,null,null,null,null,null,null,null,null,null,null,null,null,null,null,null,null,null,null,null,null,null,null,null,null,null,null,null,null,null,null,null,null,null,null,null,null,null,null,null,null,null,null,null,null,null,null,null,null,null,null,null,null,null,null,null,null,null,null,null,null,null,null,null,null,null,null,null,null,null,null,null,null,null,null,null,null,null,null,null,null,null,null,null,null,null,null,null,null,null,null,null,null,null,null,null,null,null,null,null,null,null,null,null,null,null,null,null,null,null,null,null,null,null,null,null,null,null,null,null,null,null,null,null,null,null,null,null,null,null,null,null,null,null,null,null,null,null,null,null,null,null,null,null,null,null,null,null,null,null,null,null,null,null,null,null,null,null,null,null,null,null,null,null,null,null,null,null,null,null,null,null,null,null,null,null,null,null,null,null,null,null,null,null,null,null,null,null,null,null,null,null,null,null,null,null,null,null,null,null,null,null,null,null,null,null,null,null,null,null,null,null,null,null,null,null,null,null,null,null,null,null,null,null,null,null,null,null,null,null,null,null,null,null,null,null,null,null,null,null,null,null,null,null,null,null,null,null,null,null,null,null,null,null,null,null,null,null,null,null,null,null,null,null,null,null,null,null,null,null,null,null,null,null,null,null,null,null,null,null,null,null,null,null,null,null,null,null,null,null,null,null,null,null,null,null,null,null,null,null,null,null,null,null,null,null,null,null,null,null,null,null,null,null,null,null,null,null,null,null,null,null,null,null,null,null,null,null,null,null,null,null,null,null,null,null,null,null,null,null,null,null,null,null,null,null,null,null,null,null,null,null,null,null,null,null,null,null,null,null,null,null,null,null,null,null,null,null,null,null,null,null,null,null,null,null,null,null,null,null,null,null,null,null,null,null,null,null,null,null,null,null,null,null,null,null,null,null,null,null,null,null,null,null,null,null,null,null,null,null,null,null,null,null,null,null,null,null,null,null,null,null,null,null,null,null,null,null,null,null,null,null,null,null,null,null,null,null,null,null,null,null,null,null,null,null,null,null,null,null,null,null,null,null,null,null,null,null,null,null,null,null,null,null,null,null,null,null,null,null,null,null,null,null,null,null,null,null,null,null,null,null,null,null,null,null,null,null,null,null,null,null,null,null,null,null,null,null,null,null,null,null,null,null,null,null,null,null,null,null,null,null,null,null,null,null,null,null,null,null,null,null,null,null,null,null,null,null,null,null,null,null,null,null,null,null,null,null,null,null,null,null,null,null,null,null,null,null,null,null,null,null,null,null,null,null,null,null,null,null,null,null,null,null,null,null,null,null,null,null,null,null,null,null,null,null,null,null,null,null,null,null,null,null,null,null,null,null,null,null,null,null,null,null,null,null,null,null,null,null,null,null,null,null,null,null,null,null,null,null,null,null,null,null,null,null,null,null,null,null,null,null,null,null,null,null,null,null,null,null,null,null,null,null,null,null,null,null,null,null,null,null,null,null,null,null,null,null,null,null,null,null,null,null,null,null,null,null,null,null,null,null,null,null,null,null,null,null,null,null,null,null,null,null,null,null,null,null,null,null,null,null,null,null,null,null,null,null,null,null,null,null,null,null,null,null,null,null,null,null,null,null,null,null,null,null,null,null,null,null,null,null,null,null,null,null,null,null,null,null,null,null,null,null,null,null,null,null,null,null,null,null,null,null,null,null,null,null,null,null,null,null,null,null,null,null,null,null,null,null,null,null,null,null,null,null,null,null,null,null,null,null,null,null,null,null,null,null,null,null,null,null,null,null,null,null,null,null,null,null,null,null,null,null,null,null,null,null,null,null,null,null,null,null,null,null,null,null,null,null,null,null,null,null,null,null,null,null,null,null,null,null,null,null,null,null,null,null,null,null,null,null,null,null,null,null,null,null,null,null,null,null,null,null,null,null,null,null,null,null,null,null,null,null,null,null,null,null,null,null,null,null,null,null,null,null,null,null,null,null,null,null,null,null,null,null,null,null,null,null,null,null,null,null,null,null,null,null,null,null,null,null,null,null,null,null,null,null,null,null,null,null,null,null,null,null,null,null,null,null,null,null,null,null,null,null,null,null,null,null,null,null,null,null,null,null,null,null,null,null,null,null,null,null,null,null,null,null,null,null,null,null,null,null,null,null,null,null,null,null,null,null,null,null,null,null,null,null,null,null,null,null,null,null,null,null,null,null,null,null,null,null,null,null,null,null,null,null,null,null,null,null,null,null,null,null,null,null,null,null,null,null,null,null,null,null,null,null,null,null,null,null,null,null,null,null,null,null,null,null,null,null,null,null,null,null,null,null,null,null,null,null,null,null,null,null,null,null,null,null,null,null,null,null,null,null,null,null,null,null,null,null,null,null,null,null,null,null,null,null,null,null,null,null,null,null,null,null,null,null,null,null,null,null,null,null,null,null,null,null,null,null,null,null,null,null,null,null,null,null,null,null,null,null,null,null,null,null,null,null,null,null,null,null,null,null,null,null,null,null,null,null,null,null,null,null,null,null,null,null,null,null,null,null,null,null,null,null,null,null,null,null,null,null,null,null,null,null,null,null,null,null,null,null,null,null,null,null,null,null,null,null,null,null,null,null,null,null,null,null,null,null,null,null,null,null,null,null,null,null,null,null,null,null,null,null,null,null,null,null,null,null,null,null,null,null,null,null,null,null,null,null,null,null,null,null,null,null,null,null,null,null,null,null,null,null,null,null,null,null,null,null,null,null,null,null,null,null,null,null,null,null,null,null,null,null,null,null,null,null,null,null,null,null,null,null,null,null,null,null,null,null,null,null,null,null,null,null,null,null,null,null,null,null,null,null,null,null,null,null,null,null,null,null,null,null,null,null,null,null,null,null,null,null,null,null,null,null,null,null,null,null,null,null,null,null,null,null,null,null,null,null,null,null,null,null,null,null,null,null,null,null,null,null,null,null,null,null,null,null,null,null,null,null,null,null,null,null,null,null,null,null,null,null,null,null,null,null,null,null,null,null,null,null,null,null,null,null,null,null,null,null,null,null,null,null,null,null,null,null,null,null,null,null,null,null,null,null,null,null,null,null,null,null,null,null,null,null,null,null,null,null,null,null,null,null,null,null,null,null,null,null,null,null,null,null,null,null,null,null,null,null,null,null,null,null,null,null,null,null,null,null,null,null,null,null,null,null,null,null,null,null,null,null,null,null,null,null,null,null,null,null,null,null,null,null,null,null,null,null,null,null,null,null,null,null,null,null,null,null,null,null,null,null,null,null,null,null,null,null,null,null,null,null,null,null,null,null,null,null,null,null,null,null,null,null,null,null,null,null,null,null,null,null,null,null,null,null,null,null,null,null,null,null,null,null,null,null,null,null,null,null,null,null,null,null,null,null,null,null,null,null,null,null,null,null,null,null,null,null,null,null,null,null,null,null,null,null,null,null,null,null,null,null,null,null,null,null,null,null,null,null,null,null,null,null,null,null,null,null,null,null,null,null,null,null,null,null,null,null,null,null,null,null,null,null,null,null,null,null,null,null,null,null,null,null,null,null,null,null,null,null,null,null,null,null,{"$f":"1","v":1}]
[]
[]
[]
[]
[]
[]
[]
[]
[]
[]
[]
[]
[]
[]
[]
[]
[]
[]
[]
[]
[]
[]
[]
[]
[]
[]
[]
[]
[]
[null,null,null,null,null,null,null,null,null,null,null,null,null,null,null,null,null,null,null,null,null,null,null,null,null,null,null,null,null,null,null,null,null,null,null,null,null,null,null,null,null,null,null,null,null,null,null,null,null,null,null,null,null,null,null,null,null,null,null,null,null,null,null,null,null,null,null,null,null,null,null,null,null,null,null,null,null,"s"]

{"sheet":"Tabelle","index":1,"n_rows":261,"n_cols":13,"rows_kept":261,"cut":false,"hidden":false,"merged":[]}
[]
[]
[]
[null,"E8","E7","E6","E5","E4","E3","E2","E1",null,null,null,"A"]
[]
[0,{"$f":"VALUE(MID(DEC2BIN($A6,8),COLUMN(B4)-COLUMN($A6),1))","v":0},{"$f":"VALUE(MID(DEC2BIN($A6,8),COLUMN(C4)-COLUMN($A6),1))","v":0},0,0,0,0,0,0,null,null,null,1]
[1,{"$f":"VALUE(MID(DEC2BIN($A7,8),COLUMN(B5)-COLUMN($A7),1))","v":0},0,0,0,0,0,0,1,null,null,null,0]
[2,{"$f":"VALUE(MID(DEC2BIN($A8,8),COLUMN(B6)-COLUMN($A8),1))","v":0},0,0,0,0,0,1,0,null,null,null,1]
[3,{"$f":"VALUE(MID(DEC2BIN($A9,8),COLUMN(B7)-COLUMN($A9),1))","v":0},0,0,0,0,0,1,1,null,null,null,1]
[4,{"$f":"VALUE(MID(DEC2BIN($A10,8),COLUMN(B8)-COLUMN($A10),1))","v":0},0,0,0,0,1,0,0,null,null,null,0]
[5,{"$f":"VALUE(MID(DEC2BIN($A11,8),COLUMN(B9)-COLUMN($A11),1))","v":0},0,0,0,0,1,0,1,null,null,null,0]
[6,{"$f":"VALUE(MID(DEC2BIN($A12,8),COLUMN(B10)-COLUMN($A12),1))","v":0},0,0,0,0,1,1,0,null,null,null,0]
[7,{"$f":"VALUE(MID(DEC2BIN($A13,8),COLUMN(B11)-COLUMN($A13),1))","v":0},0,0,0,0,1,1,1,null,null,null,1]
[8,{"$f":"VALUE(MID(DEC2BIN($A14,8),COLUMN(B12)-COLUMN($A14),1))","v":0},0,0,0,1,0,0,0,null,null,null,1]
[9,{"$f":"VALUE(MID(DEC2BIN($A15,8),COLUMN(B13)-COLUMN($A15),1))","v":0},0,0,0,1,0,0,1,null,null,null,0]
[10,{"$f":"VALUE(MID(DEC2BIN($A16,8),COLUMN(B14)-COLUMN($A16),1))","v":0},0,0,0,1,0,1,0,null,null,null,1]
[11,{"$f":"VALUE(MID(DEC2BIN($A17,8),COLUMN(B15)-COLUMN($A17),1))","v":0},0,0,0,1,0,1,1,null,null,null,1]
[12,{"$f":"VALUE(MID(DEC2BIN($A18,8),COLUMN(B16)-COLUMN($A18),1))","v":0},0,0,0,1,1,0,0,null,null,null,0]
[13,{"$f":"VALUE(MID(DEC2BIN($A19,8),COLUMN(B17)-COLUMN($A19),1))","v":0},0,0,0,1,1,0,1,null,null,null,0]
[14,{"$f":"VALUE(MID(DEC2BIN($A20,8),COLUMN(B18)-COLUMN($A20),1))","v":0},0,0,0,1,1,1,0,null,null,null,0]
[15,{"$f":"VALUE(MID(DEC2BIN($A21,8),COLUMN(B19)-COLUMN($A21),1))","v":0},0,0,0,1,1,1,1,null,null,null,1]
[16,{"$f":"VALUE(MID(DEC2BIN($A22,8),COLUMN(B20)-COLUMN($A22),1))","v":0},0,0,1,0,0,0,0,null,null,null,1]
[17,{"$f":"VALUE(MID(DEC2BIN($A23,8),COLUMN(B21)-COLUMN($A23),1))","v":0},0,0,1,0,0,0,1,null,null,null,0]
[18,{"$f":"VALUE(MID(DEC2BIN($A24,8),COLUMN(B22)-COLUMN($A24),1))","v":0},0,0,1,0,0,1,0,null,null,null,1]
[19,{"$f":"VALUE(MID(DEC2BIN($A25,8),COLUMN(B23)-COLUMN($A25),1))","v":0},0,0,1,0,0,1,1,null,null,null,1]
[20,{"$f":"VALUE(MID(DEC2BIN($A26,8),COLUMN(B24)-COLUMN($A26),1))","v":0},0,0,1,0,1,0,0,null,null,null,0]
[21,{"$f":"VALUE(MID(DEC2BIN($A27,8),COLUMN(B25)-COLUMN($A27),1))","v":0},0,0,1,0,1,0,1,null,null,null,0]
[22,{"$f":"VALUE(MID(DEC2BIN($A28,8),COLUMN(B26)-COLUMN($A28),1))","v":0},0,0,1,0,1,1,0,null,null,null,0]
[23,{"$f":"VALUE(MID(DEC2BIN($A29,8),COLUMN(B27)-COLUMN($A29),1))","v":0},0,0,1,0,1,1,1,null,null,null,1]
[24,{"$f":"VALUE(MID(DEC2BIN($A30,8),COLUMN(B28)-COLUMN($A30),1))","v":0},0,0,1,1,0,0,0,null,null,null,1]
[25,{"$f":"VALUE(MID(DEC2BIN($A31,8),COLUMN(B29)-COLUMN($A31),1))","v":0},0,0,1,1,0,0,1,null,null,null,0]
[26,{"$f":"VALUE(MID(DEC2BIN($A32,8),COLUMN(B30)-COLUMN($A32),1))","v":0},0,0,1,1,0,1,0,null,null,null,1]
[27,{"$f":"VALUE(MID(DEC2BIN($A33,8),COLUMN(B31)-COLUMN($A33),1))","v":0},0,0,1,1,0,1,1,null,null,null,1]
[28,{"$f":"VALUE(MID(DEC2BIN($A34,8),COLUMN(B32)-COLUMN($A34),1))","v":0},0,0,1,1,1,0,0,null,null,null,0]
[29,{"$f":"VALUE(MID(DEC2BIN($A35,8),COLUMN(B33)-COLUMN($A35),1))","v":0},0,0,1,1,1,0,1,null,null,null,0]
[30,{"$f":"VALUE(MID(DEC2BIN($A36,8),COLUMN(B34)-COLUMN($A36),1))","v":0},0,0,1,1,1,1,0,null,null,null,0]
[31,{"$f":"VALUE(MID(DEC2BIN($A37,8),COLUMN(B35)-COLUMN($A37),1))","v":0},0,0,1,1,1,1,1,null,null,null,1]
[32,{"$f":"VALUE(MID(DEC2BIN($A38,8),COLUMN(B36)-COLUMN($A38),1))","v":0},0,1,0,0,0,0,0,null,null,null,1]
[33,{"$f":"VALUE(MID(DEC2BIN($A39,8),COLUMN(B37)-COLUMN($A39),1))","v":0},0,1,0,0,0,0,1,null,null,null,0]
[34,{"$f":"VALUE(MID(DEC2BIN($A40,8),COLUMN(B38)-COLUMN($A40),1))","v":0},0,1,0,0,0,1,0,null,null,null,1]
[35,{"$f":"VALUE(MID(DEC2BIN($A41,8),COLUMN(B39)-COLUMN($A41),1))","v":0},0,1,0,0,0,1,1,null,null,null,1]
[36,{"$f":"VALUE(MID(DEC2BIN($A42,8),COLUMN(B40)-COLUMN($A42),1))","v":0},0,1,0,0,1,0,0,null,null,null,0]
[37,{"$f":"VALUE(MID(DEC2BIN($A43,8),COLUMN(B41)-COLUMN($A43),1))","v":0},0,1,0,0,1,0,1,null,null,null,0]
[38,{"$f":"VALUE(MID(DEC2BIN($A44,8),COLUMN(B42)-COLUMN($A44),1))","v":0},0,1,0,0,1,1,0,null,null,null,0]
[39,{"$f":"VALUE(MID(DEC2BIN($A45,8),COLUMN(B43)-COLUMN($A45),1))","v":0},0,1,0,0,1,1,1,null,null,null,1]
[40,{"$f":"VALUE(MID(DEC2BIN($A46,8),COLUMN(B44)-COLUMN($A46),1))","v":0},0,1,0,1,0,0,0,null,null,null,1]
[41,{"$f":"VALUE(MID(DEC2BIN($A47,8),COLUMN(B45)-COLUMN($A47),1))","v":0},0,1,0,1,0,0,1,null,null,null,0]
[42,{"$f":"VALUE(MID(DEC2BIN($A48,8),COLUMN(B46)-COLUMN($A48),1))","v":0},0,1,0,1,0,1,0,null,null,null,1]
[43,{"$f":"VALUE(MID(DEC2BIN($A49,8),COLUMN(B47)-COLUMN($A49),1))","v":0},0,1,0,1,0,1,1,null,null,null,1]
[44,{"$f":"VALUE(MID(DEC2BIN($A50,8),COLUMN(B48)-COLUMN($A50),1))","v":0},0,1,0,1,1,0,0,null,null,null,0]
[45,{"$f":"VALUE(MID(DEC2BIN($A51,8),COLUMN(B49)-COLUMN($A51),1))","v":0},0,1,0,1,1,0,1,null,null,null,0]
[46,{"$f":"VALUE(MID(DEC2BIN($A52,8),COLUMN(B50)-COLUMN($A52),1))","v":0},0,1,0,1,1,1,0,null,null,null,0]
[47,{"$f":"VALUE(MID(DEC2BIN($A53,8),COLUMN(B51)-COLUMN($A53),1))","v":0},0,1,0,1,1,1,1,null,null,null,1]
[48,{"$f":"VALUE(MID(DEC2BIN($A54,8),COLUMN(B52)-COLUMN($A54),1))","v":0},0,1,1,0,0,0,0,null,null,null,1]
[49,{"$f":"VALUE(MID(DEC2BIN($A55,8),COLUMN(B53)-COLUMN($A55),1))","v":0},0,1,1,0,0,0,1,null,null,null,0]
[50,{"$f":"VALUE(MID(DEC2BIN($A56,8),COLUMN(B54)-COLUMN($A56),1))","v":0},0,1,1,0,0,1,0,null,null,null,1]
[51,{"$f":"VALUE(MID(DEC2BIN($A57,8),COLUMN(B55)-COLUMN($A57),1))","v":0},0,1,1,0,0,1,1,null,null,null,1]
[52,{"$f":"VALUE(MID(DEC2BIN($A58,8),COLUMN(B56)-COLUMN($A58),1))","v":0},0,1,1,0,1,0,0,null,null,null,0]
[53,{"$f":"VALUE(MID(DEC2BIN($A59,8),COLUMN(B57)-COLUMN($A59),1))","v":0},0,1,1,0,1,0,1,null,null,null,0]
[54,{"$f":"VALUE(MID(DEC2BIN($A60,8),COLUMN(B58)-COLUMN($A60),1))","v":0},0,1,1,0,1,1,0,null,null,null,0]
[55,{"$f":"VALUE(MID(DEC2BIN($A61,8),COLUMN(B59)-COLUMN($A61),1))","v":0},0,1,1,0,1,1,1,null,null,null,1]
[56,{"$f":"VALUE(MID(DEC2BIN($A62,8),COLUMN(B60)-COLUMN($A62),1))","v":0},0,1,1,1,0,0,0,null,null,null,1]
[57,{"$f":"VALUE(MID(DEC2BIN($A63,8),COLUMN(B61)-COLUMN($A63),1))","v":0},0,1,1,1,0,0,1,null,null,null,0]
[58,{"$f":"VALUE(MID(DEC2BIN($A64,8),COLUMN(B62)-COLUMN($A64),1))","v":0},0,1,1,1,0,1,0,null,null,null,1]
[59,{"$f":"VALUE(MID(DEC2BIN($A65,8),COLUMN(B63)-COLUMN($A65),1))","v":0},0,1,1,1,0,1,1,null,null,null,1]
[60,{"$f":"VALUE(MID(DEC2BIN($A66,8),COLUMN(B64)-COLUMN($A66),1))","v":0},0,1,1,1,1,0,0,null,null,null,0]
[61,{"$f":"VALUE(MID(DEC2BIN($A67,8),COLUMN(B65)-COLUMN($A67),1))","v":0},0,1,1,1,1,0,1,null,null,null,0]
[62,{"$f":"VALUE(MID(DEC2BIN($A68,8),COLUMN(B66)-COLUMN($A68),1))","v":0},0,1,1,1,1,1,0,null,null,null,0]
[63,{"$f":"VALUE(MID(DEC2BIN($A69,8),COLUMN(B67)-COLUMN($A69),1))","v":0},0,1,1,1,1,1,1,null,null,null,1]
[64,{"$f":"VALUE(MID(DEC2BIN($A70,8),COLUMN(B68)-COLUMN($A70),1))","v":0},1,0,0,0,0,0,0]
[65,{"$f":"VALUE(MID(DEC2BIN($A71,8),COLUMN(B69)-COLUMN($A71),1))","v":0},1,0,0,0,0,0,1]
[66,{"$f":"VALUE(MID(DEC2BIN($A72,8),COLUMN(B70)-COLUMN($A72),1))","v":0},1,0,0,0,0,1,0]
[67,{"$f":"VALUE(MID(DEC2BIN($A73,8),COLUMN(B71)-COLUMN($A73),1))","v":0},1,0,0,0,0,1,1]
[68,{"$f":"VALUE(MID(DEC2BIN($A74,8),COLUMN(B72)-COLUMN($A74),1))","v":0},1,0,0,0,1,0,0]
[69,{"$f":"VALUE(MID(DEC2BIN($A75,8),COLUMN(B73)-COLUMN($A75),1))","v":0},1,0,0,0,1,0,1]
[70,{"$f":"VALUE(MID(DEC2BIN($A76,8),COLUMN(B74)-COLUMN($A76),1))","v":0},1,0,0,0,1,1,0]
[71,{"$f":"VALUE(MID(DEC2BIN($A77,8),COLUMN(B75)-COLUMN($A77),1))","v":0},1,0,0,0,1,1,1]
[72,{"$f":"VALUE(MID(DEC2BIN($A78,8),COLUMN(B76)-COLUMN($A78),1))","v":0},1,0,0,1,0,0,0]
[73,{"$f":"VALUE(MID(DEC2BIN($A79,8),COLUMN(B77)-COLUMN($A79),1))","v":0},1,0,0,1,0,0,1]
[74,{"$f":"VALUE(MID(DEC2BIN($A80,8),COLUMN(B78)-COLUMN($A80),1))","v":0},1,0,0,1,0,1,0]
[75,{"$f":"VALUE(MID(DEC2BIN($A81,8),COLUMN(B79)-COLUMN($A81),1))","v":0},1,0,0,1,0,1,1]
[76,{"$f":"VALUE(MID(DEC2BIN($A82,8),COLUMN(B80)-COLUMN($A82),1))","v":0},1,0,0,1,1,0,0]
[77,{"$f":"VALUE(MID(DEC2BIN($A83,8),COLUMN(B81)-COLUMN($A83),1))","v":0},1,0,0,1,1,0,1]
[78,{"$f":"VALUE(MID(DEC2BIN($A84,8),COLUMN(B82)-COLUMN($A84),1))","v":0},1,0,0,1,1,1,0]
[79,{"$f":"VALUE(MID(DEC2BIN($A85,8),COLUMN(B83)-COLUMN($A85),1))","v":0},1,0,0,1,1,1,1]
[80,{"$f":"VALUE(MID(DEC2BIN($A86,8),COLUMN(B84)-COLUMN($A86),1))","v":0},1,0,1,0,0,0,0]
[81,{"$f":"VALUE(MID(DEC2BIN($A87,8),COLUMN(B85)-COLUMN($A87),1))","v":0},1,0,1,0,0,0,1]
[82,{"$f":"VALUE(MID(DEC2BIN($A88,8),COLUMN(B86)-COLUMN($A88),1))","v":0},1,0,1,0,0,1,0]
[83,{"$f":"VALUE(MID(DEC2BIN($A89,8),COLUMN(B87)-COLUMN($A89),1))","v":0},1,0,1,0,0,1,1]
[84,{"$f":"VALUE(MID(DEC2BIN($A90,8),COLUMN(B88)-COLUMN($A90),1))","v":0},1,0,1,0,1,0,0]
[85,{"$f":"VALUE(MID(DEC2BIN($A91,8),COLUMN(B89)-COLUMN($A91),1))","v":0},1,0,1,0,1,0,1]
[86,{"$f":"VALUE(MID(DEC2BIN($A92,8),COLUMN(B90)-COLUMN($A92),1))","v":0},1,0,1,0,1,1,0]
[87,{"$f":"VALUE(MID(DEC2BIN($A93,8),COLUMN(B91)-COLUMN($A93),1))","v":0},1,0,1,0,1,1,1]
[88,{"$f":"VALUE(MID(DEC2BIN($A94,8),COLUMN(B92)-COLUMN($A94),1))","v":0},1,0,1,1,0,0,0]
[89,{"$f":"VALUE(MID(DEC2BIN($A95,8),COLUMN(B93)-COLUMN($A95),1))","v":0},1,0,1,1,0,0,1]
[90,{"$f":"VALUE(MID(DEC2BIN($A96,8),COLUMN(B94)-COLUMN($A96),1))","v":0},1,0,1,1,0,1,0]
[91,{"$f":"VALUE(MID(DEC2BIN($A97,8),COLUMN(B95)-COLUMN($A97),1))","v":0},1,0,1,1,0,1,1]
[92,{"$f":"VALUE(MID(DEC2BIN($A98,8),COLUMN(B96)-COLUMN($A98),1))","v":0},1,0,1,1,1,0,0]
[93,{"$f":"VALUE(MID(DEC2BIN($A99,8),COLUMN(B97)-COLUMN($A99),1))","v":0},1,0,1,1,1,0,1]
[94,{"$f":"VALUE(MID(DEC2BIN($A100,8),COLUMN(B98)-COLUMN($A100),1))","v":0},1,0,1,1,1,1,0]
[95,{"$f":"VALUE(MID(DEC2BIN($A101,8),COLUMN(B99)-COLUMN($A101),1))","v":0},1,0,1,1,1,1,1]
[96,{"$f":"VALUE(MID(DEC2BIN($A102,8),COLUMN(B100)-COLUMN($A102),1))","v":0},1,1,0,0,0,0,0]
[97,{"$f":"VALUE(MID(DEC2BIN($A103,8),COLUMN(B101)-COLUMN($A103),1))","v":0},1,1,0,0,0,0,1]
[98,{"$f":"VALUE(MID(DEC2BIN($A104,8),COLUMN(B102)-COLUMN($A104),1))","v":0},1,1,0,0,0,1,0]
[99,{"$f":"VALUE(MID(DEC2BIN($A105,8),COLUMN(B103)-COLUMN($A105),1))","v":0},1,1,0,0,0,1,1]
[100,{"$f":"VALUE(MID(DEC2BIN($A106,8),COLUMN(B104)-COLUMN($A106),1))","v":0},1,1,0,0,1,0,0]
[101,{"$f":"VALUE(MID(DEC2BIN($A107,8),COLUMN(B105)-COLUMN($A107),1))","v":0},1,1,0,0,1,0,1]
[102,{"$f":"VALUE(MID(DEC2BIN($A108,8),COLUMN(B106)-COLUMN($A108),1))","v":0},1,1,0,0,1,1,0]
[103,{"$f":"VALUE(MID(DEC2BIN($A109,8),COLUMN(B107)-COLUMN($A109),1))","v":0},1,1,0,0,1,1,1]
[104,{"$f":"VALUE(MID(DEC2BIN($A110,8),COLUMN(B108)-COLUMN($A110),1))","v":0},1,1,0,1,0,0,0]
[105,{"$f":"VALUE(MID(DEC2BIN($A111,8),COLUMN(B109)-COLUMN($A111),1))","v":0},1,1,0,1,0,0,1]
[106,{"$f":"VALUE(MID(DEC2BIN($A112,8),COLUMN(B110)-COLUMN($A112),1))","v":0},1,1,0,1,0,1,0]
[107,{"$f":"VALUE(MID(DEC2BIN($A113,8),COLUMN(B111)-COLUMN($A113),1))","v":0},1,1,0,1,0,1,1]
[108,{"$f":"VALUE(MID(DEC2BIN($A114,8),COLUMN(B112)-COLUMN($A114),1))","v":0},1,1,0,1,1,0,0]
[109,{"$f":"VALUE(MID(DEC2BIN($A115,8),COLUMN(B113)-COLUMN($A115),1))","v":0},1,1,0,1,1,0,1]
[110,{"$f":"VALUE(MID(DEC2BIN($A116,8),COLUMN(B114)-COLUMN($A116),1))","v":0},1,1,0,1,1,1,0]
[111,{"$f":"VALUE(MID(DEC2BIN($A117,8),COLUMN(B115)-COLUMN($A117),1))","v":0},1,1,0,1,1,1,1]
[112,{"$f":"VALUE(MID(DEC2BIN($A118,8),COLUMN(B116)-COLUMN($A118),1))","v":0},1,1,1,0,0,0,0]
[113,{"$f":"VALUE(MID(DEC2BIN($A119,8),COLUMN(B117)-COLUMN($A119),1))","v":0},1,1,1,0,0,0,1]
[114,{"$f":"VALUE(MID(DEC2BIN($A120,8),COLUMN(B118)-COLUMN($A120),1))","v":0},1,1,1,0,0,1,0]
[115,{"$f":"VALUE(MID(DEC2BIN($A121,8),COLUMN(B119)-COLUMN($A121),1))","v":0},1,1,1,0,0,1,1]
[116,{"$f":"VALUE(MID(DEC2BIN($A122,8),COLUMN(B120)-COLUMN($A122),1))","v":0},1,1,1,0,1,0,0]
[117,{"$f":"VALUE(MID(DEC2BIN($A123,8),COLUMN(B121)-COLUMN($A123),1))","v":0},1,1,1,0,1,0,1]
[118,{"$f":"VALUE(MID(DEC2BIN($A124,8),COLUMN(B122)-COLUMN($A124),1))","v":0},1,1,1,0,1,1,0]
[119,{"$f":"VALUE(MID(DEC2BIN($A125,8),COLUMN(B123)-COLUMN($A125),1))","v":0},1,1,1,0,1,1,1]
[120,{"$f":"VALUE(MID(DEC2BIN($A126,8),COLUMN(B124)-COLUMN($A126),1))","v":0},1,1,1,1,0,0,0]
[121,{"$f":"VALUE(MID(DEC2BIN($A127,8),COLUMN(B125)-COLUMN($A127),1))","v":0},1,1,1,1,0,0,1]
[122,{"$f":"VALUE(MID(DEC2BIN($A128,8),COLUMN(B126)-COLUMN($A128),1))","v":0},1,1,1,1,0,1,0]
[123,{"$f":"VALUE(MID(DEC2BIN($A129,8),COLUMN(B127)-COLUMN($A129),1))","v":0},1,1,1,1,0,1,1]
[124,{"$f":"VALUE(MID(DEC2BIN($A130,8),COLUMN(B128)-COLUMN($A130),1))","v":0},1,1,1,1,1,0,0]
[125,{"$f":"VALUE(MID(DEC2BIN($A131,8),COLUMN(B129)-COLUMN($A131),1))","v":0},1,1,1,1,1,0,1]
[126,{"$f":"VALUE(MID(DEC2BIN($A132,8),COLUMN(B130)-COLUMN($A132),1))","v":0},1,1,1,1,1,1,0]
[127,{"$f":"VALUE(MID(DEC2BIN($A133,8),COLUMN(B131)-COLUMN($A133),1))","v":0},1,1,1,1,1,1,1]
[128,{"$f":"VALUE(MID(DEC2BIN($A134,8),COLUMN(B132)-COLUMN($A134),1))","v":1},0,0,0,0,0,0,0]
[129,{"$f":"VALUE(MID(DEC2BIN($A135,8),COLUMN(B133)-COLUMN($A135),1))","v":1},0,0,0,0,0,0,1]
[130,{"$f":"VALUE(MID(DEC2BIN($A136,8),COLUMN(B134)-COLUMN($A136),1))","v":1},0,0,0,0,0,1,0]
[131,{"$f":"VALUE(MID(DEC2BIN($A137,8),COLUMN(B135)-COLUMN($A137),1))","v":1},0,0,0,0,0,1,1]
[132,{"$f":"VALUE(MID(DEC2BIN($A138,8),COLUMN(B136)-COLUMN($A138),1))","v":1},0,0,0,0,1,0,0]
[133,{"$f":"VALUE(MID(DEC2BIN($A139,8),COLUMN(B137)-COLUMN($A139),1))","v":1},0,0,0,0,1,0,1]
[134,{"$f":"VALUE(MID(DEC2BIN($A140,8),COLUMN(B138)-COLUMN($A140),1))","v":1},0,0,0,0,1,1,0]
[135,{"$f":"VALUE(MID(DEC2BIN($A141,8),COLUMN(B139)-COLUMN($A141),1))","v":1},0,0,0,0,1,1,1]
[136,{"$f":"VALUE(MID(DEC2BIN($A142,8),COLUMN(B140)-COLUMN($A142),1))","v":1},0,0,0,1,0,0,0]
[137,{"$f":"VALUE(MID(DEC2BIN($A143,8),COLUMN(B141)-COLUMN($A143),1))","v":1},0,0,0,1,0,0,1]
[138,{"$f":"VALUE(MID(DEC2BIN($A144,8),COLUMN(B142)-COLUMN($A144),1))","v":1},0,0,0,1,0,1,0]
[139,{"$f":"VALUE(MID(DEC2BIN($A145,8),COLUMN(B143)-COLUMN($A145),1))","v":1},0,0,0,1,0,1,1]
[140,{"$f":"VALUE(MID(DEC2BIN($A146,8),COLUMN(B144)-COLUMN($A146),1))","v":1},0,0,0,1,1,0,0]
[141,{"$f":"VALUE(MID(DEC2BIN($A147,8),COLUMN(B145)-COLUMN($A147),1))","v":1},0,0,0,1,1,0,1]
[142,{"$f":"VALUE(MID(DEC2BIN($A148,8),COLUMN(B146)-COLUMN($A148),1))","v":1},0,0,0,1,1,1,0]
[143,{"$f":"VALUE(MID(DEC2BIN($A149,8),COLUMN(B147)-COLUMN($A149),1))","v":1},0,0,0,1,1,1,1]
[144,{"$f":"VALUE(MID(DEC2BIN($A150,8),COLUMN(B148)-COLUMN($A150),1))","v":1},0,0,1,0,0,0,0]
[145,{"$f":"VALUE(MID(DEC2BIN($A151,8),COLUMN(B149)-COLUMN($A151),1))","v":1},0,0,1,0,0,0,1]
[146,{"$f":"VALUE(MID(DEC2BIN($A152,8),COLUMN(B150)-COLUMN($A152),1))","v":1},0,0,1,0,0,1,0]
[147,{"$f":"VALUE(MID(DEC2BIN($A153,8),COLUMN(B151)-COLUMN($A153),1))","v":1},0,0,1,0,0,1,1]
[148,{"$f":"VALUE(MID(DEC2BIN($A154,8),COLUMN(B152)-COLUMN($A154),1))","v":1},0,0,1,0,1,0,0]
[149,{"$f":"VALUE(MID(DEC2BIN($A155,8),COLUMN(B153)-COLUMN($A155),1))","v":1},0,0,1,0,1,0,1]
[150,{"$f":"VALUE(MID(DEC2BIN($A156,8),COLUMN(B154)-COLUMN($A156),1))","v":1},0,0,1,0,1,1,0]
[151,{"$f":"VALUE(MID(DEC2BIN($A157,8),COLUMN(B155)-COLUMN($A157),1))","v":1},0,0,1,0,1,1,1]
[152,{"$f":"VALUE(MID(DEC2BIN($A158,8),COLUMN(B156)-COLUMN($A158),1))","v":1},0,0,1,1,0,0,0]
[153,{"$f":"VALUE(MID(DEC2BIN($A159,8),COLUMN(B157)-COLUMN($A159),1))","v":1},0,0,1,1,0,0,1]
[154,{"$f":"VALUE(MID(DEC2BIN($A160,8),COLUMN(B158)-COLUMN($A160),1))","v":1},0,0,1,1,0,1,0]
[155,{"$f":"VALUE(MID(DEC2BIN($A161,8),COLUMN(B159)-COLUMN($A161),1))","v":1},0,0,1,1,0,1,1]
[156,{"$f":"VALUE(MID(DEC2BIN($A162,8),COLUMN(B160)-COLUMN($A162),1))","v":1},0,0,1,1,1,0,0]
[157,{"$f":"VALUE(MID(DEC2BIN($A163,8),COLUMN(B161)-COLUMN($A163),1))","v":1},0,0,1,1,1,0,1]
[158,{"$f":"VALUE(MID(DEC2BIN($A164,8),COLUMN(B162)-COLUMN($A164),1))","v":1},0,0,1,1,1,1,0]
[159,{"$f":"VALUE(MID(DEC2BIN($A165,8),COLUMN(B163)-COLUMN($A165),1))","v":1},0,0,1,1,1,1,1]
[160,{"$f":"VALUE(MID(DEC2BIN($A166,8),COLUMN(B164)-COLUMN($A166),1))","v":1},0,1,0,0,0,0,0]
[161,{"$f":"VALUE(MID(DEC2BIN($A167,8),COLUMN(B165)-COLUMN($A167),1))","v":1},0,1,0,0,0,0,1]
[162,{"$f":"VALUE(MID(DEC2BIN($A168,8),COLUMN(B166)-COLUMN($A168),1))","v":1},0,1,0,0,0,1,0]
[163,{"$f":"VALUE(MID(DEC2BIN($A169,8),COLUMN(B167)-COLUMN($A169),1))","v":1},0,1,0,0,0,1,1]
[164,{"$f":"VALUE(MID(DEC2BIN($A170,8),COLUMN(B168)-COLUMN($A170),1))","v":1},0,1,0,0,1,0,0]
[165,{"$f":"VALUE(MID(DEC2BIN($A171,8),COLUMN(B169)-COLUMN($A171),1))","v":1},0,1,0,0,1,0,1]
[166,{"$f":"VALUE(MID(DEC2BIN($A172,8),COLUMN(B170)-COLUMN($A172),1))","v":1},0,1,0,0,1,1,0]
[167,{"$f":"VALUE(MID(DEC2BIN($A173,8),COLUMN(B171)-COLUMN($A173),1))","v":1},0,1,0,0,1,1,1]
[168,{"$f":"VALUE(MID(DEC2BIN($A174,8),COLUMN(B172)-COLUMN($A174),1))","v":1},0,1,0,1,0,0,0]
[169,{"$f":"VALUE(MID(DEC2BIN($A175,8),COLUMN(B173)-COLUMN($A175),1))","v":1},0,1,0,1,0,0,1]
[170,{"$f":"VALUE(MID(DEC2BIN($A176,8),COLUMN(B174)-COLUMN($A176),1))","v":1},0,1,0,1,0,1,0]
[171,{"$f":"VALUE(MID(DEC2BIN($A177,8),COLUMN(B175)-COLUMN($A177),1))","v":1},0,1,0,1,0,1,1]
[172,{"$f":"VALUE(MID(DEC2BIN($A178,8),COLUMN(B176)-COLUMN($A178),1))","v":1},0,1,0,1,1,0,0]
[173,{"$f":"VALUE(MID(DEC2BIN($A179,8),COLUMN(B177)-COLUMN($A179),1))","v":1},0,1,0,1,1,0,1]
[174,{"$f":"VALUE(MID(DEC2BIN($A180,8),COLUMN(B178)-COLUMN($A180),1))","v":1},0,1,0,1,1,1,0]
[175,{"$f":"VALUE(MID(DEC2BIN($A181,8),COLUMN(B179)-COLUMN($A181),1))","v":1},0,1,0,1,1,1,1]
[176,{"$f":"VALUE(MID(DEC2BIN($A182,8),COLUMN(B180)-COLUMN($A182),1))","v":1},0,1,1,0,0,0,0]
[177,{"$f":"VALUE(MID(DEC2BIN($A183,8),COLUMN(B181)-COLUMN($A183),1))","v":1},0,1,1,0,0,0,1]
[178,{"$f":"VALUE(MID(DEC2BIN($A184,8),COLUMN(B182)-COLUMN($A184),1))","v":1},0,1,1,0,0,1,0]
[179,{"$f":"VALUE(MID(DEC2BIN($A185,8),COLUMN(B183)-COLUMN($A185),1))","v":1},0,1,1,0,0,1,1]
[180,{"$f":"VALUE(MID(DEC2BIN($A186,8),COLUMN(B184)-COLUMN($A186),1))","v":1},0,1,1,0,1,0,0]
[181,{"$f":"VALUE(MID(DEC2BIN($A187,8),COLUMN(B185)-COLUMN($A187),1))","v":1},0,1,1,0,1,0,1]
[182,{"$f":"VALUE(MID(DEC2BIN($A188,8),COLUMN(B186)-COLUMN($A188),1))","v":1},0,1,1,0,1,1,0]
[183,{"$f":"VALUE(MID(DEC2BIN($A189,8),COLUMN(B187)-COLUMN($A189),1))","v":1},0,1,1,0,1,1,1]
[184,{"$f":"VALUE(MID(DEC2BIN($A190,8),COLUMN(B188)-COLUMN($A190),1))","v":1},0,1,1,1,0,0,0]
[185,{"$f":"VALUE(MID(DEC2BIN($A191,8),COLUMN(B189)-COLUMN($A191),1))","v":1},0,1,1,1,0,0,1]
[186,{"$f":"VALUE(MID(DEC2BIN($A192,8),COLUMN(B190)-COLUMN($A192),1))","v":1},0,1,1,1,0,1,0]
[187,{"$f":"VALUE(MID(DEC2BIN($A193,8),COLUMN(B191)-COLUMN($A193),1))","v":1},0,1,1,1,0,1,1]
[188,{"$f":"VALUE(MID(DEC2BIN($A194,8),COLUMN(B192)-COLUMN($A194),1))","v":1},0,1,1,1,1,0,0]
[189,{"$f":"VALUE(MID(DEC2BIN($A195,8),COLUMN(B193)-COLUMN($A195),1))","v":1},0,1,1,1,1,0,1]
[190,{"$f":"VALUE(MID(DEC2BIN($A196,8),COLUMN(B194)-COLUMN($A196),1))","v":1},0,1,1,1,1,1,0]
[191,{"$f":"VALUE(MID(DEC2BIN($A197,8),COLUMN(B195)-COLUMN($A197),1))","v":1},0,1,1,1,1,1,1]
[192,{"$f":"VALUE(MID(DEC2BIN($A198,8),COLUMN(B196)-COLUMN($A198),1))","v":1},1,0,0,0,0,0,0]
[193,{"$f":"VALUE(MID(DEC2BIN($A199,8),COLUMN(B197)-COLUMN($A199),1))","v":1},1,0,0,0,0,0,1]
[194,{"$f":"VALUE(MID(DEC2BIN($A200,8),COLUMN(B198)-COLUMN($A200),1))","v":1},1,0,0,0,0,1,0]
[195,{"$f":"VALUE(MID(DEC2BIN($A201,8),COLUMN(B199)-COLUMN($A201),1))","v":1},1,0,0,0,0,1,1]
[196,{"$f":"VALUE(MID(DEC2BIN($A202,8),COLUMN(B200)-COLUMN($A202),1))","v":1},1,0,0,0,1,0,0]
[197,{"$f":"VALUE(MID(DEC2BIN($A203,8),COLUMN(B201)-COLUMN($A203),1))","v":1},1,0,0,0,1,0,1]
[198,{"$f":"VALUE(MID(DEC2BIN($A204,8),COLUMN(B202)-COLUMN($A204),1))","v":1},1,0,0,0,1,1,0]
[199,{"$f":"VALUE(MID(DEC2BIN($A205,8),COLUMN(B203)-COLUMN($A205),1))","v":1},1,0,0,0,1,1,1]
[200,{"$f":"VALUE(MID(DEC2BIN($A206,8),COLUMN(B204)-COLUMN($A206),1))","v":1},1,0,0,1,0,0,0]
[201,{"$f":"VALUE(MID(DEC2BIN($A207,8),COLUMN(B205)-COLUMN($A207),1))","v":1},1,0,0,1,0,0,1]
[202,{"$f":"VALUE(MID(DEC2BIN($A208,8),COLUMN(B206)-COLUMN($A208),1))","v":1},1,0,0,1,0,1,0]
[203,{"$f":"VALUE(MID(DEC2BIN($A209,8),COLUMN(B207)-COLUMN($A209),1))","v":1},1,0,0,1,0,1,1]
[204,{"$f":"VALUE(MID(DEC2BIN($A210,8),COLUMN(B208)-COLUMN($A210),1))","v":1},1,0,0,1,1,0,0]
[205,{"$f":"VALUE(MID(DEC2BIN($A211,8),COLUMN(B209)-COLUMN($A211),1))","v":1},1,0,0,1,1,0,1]
[206,{"$f":"VALUE(MID(DEC2BIN($A212,8),COLUMN(B210)-COLUMN($A212),1))","v":1},1,0,0,1,1,1,0]
[207,{"$f":"VALUE(MID(DEC2BIN($A213,8),COLUMN(B211)-COLUMN($A213),1))","v":1},1,0,0,1,1,1,1]
[208,{"$f":"VALUE(MID(DEC2BIN($A214,8),COLUMN(B212)-COLUMN($A214),1))","v":1},1,0,1,0,0,0,0]
[209,{"$f":"VALUE(MID(DEC2BIN($A215,8),COLUMN(B213)-COLUMN($A215),1))","v":1},1,0,1,0,0,0,1]
[210,{"$f":"VALUE(MID(DEC2BIN($A216,8),COLUMN(B214)-COLUMN($A216),1))","v":1},1,0,1,0,0,1,0]
[211,{"$f":"VALUE(MID(DEC2BIN($A217,8),COLUMN(B215)-COLUMN($A217),1))","v":1},1,0,1,0,0,1,1]
[212,{"$f":"VALUE(MID(DEC2BIN($A218,8),COLUMN(B216)-COLUMN($A218),1))","v":1},1,0,1,0,1,0,0]
[213,{"$f":"VALUE(MID(DEC2BIN($A219,8),COLUMN(B217)-COLUMN($A219),1))","v":1},1,0,1,0,1,0,1]
[214,{"$f":"VALUE(MID(DEC2BIN($A220,8),COLUMN(B218)-COLUMN($A220),1))","v":1},1,0,1,0,1,1,0]
[215,{"$f":"VALUE(MID(DEC2BIN($A221,8),COLUMN(B219)-COLUMN($A221),1))","v":1},1,0,1,0,1,1,1]
[216,{"$f":"VALUE(MID(DEC2BIN($A222,8),COLUMN(B220)-COLUMN($A222),1))","v":1},1,0,1,1,0,0,0]
[217,{"$f":"VALUE(MID(DEC2BIN($A223,8),COLUMN(B221)-COLUMN($A223),1))","v":1},1,0,1,1,0,0,1]
[218,{"$f":"VALUE(MID(DEC2BIN($A224,8),COLUMN(B222)-COLUMN($A224),1))","v":1},1,0,1,1,0,1,0]
[219,{"$f":"VALUE(MID(DEC2BIN($A225,8),COLUMN(B223)-COLUMN($A225),1))","v":1},1,0,1,1,0,1,1]
[220,{"$f":"VALUE(MID(DEC2BIN($A226,8),COLUMN(B224)-COLUMN($A226),1))","v":1},1,0,1,1,1,0,0]
[221,{"$f":"VALUE(MID(DEC2BIN($A227,8),COLUMN(B225)-COLUMN($A227),1))","v":1},1,0,1,1,1,0,1]
[222,{"$f":"VALUE(MID(DEC2BIN($A228,8),COLUMN(B226)-COLUMN($A228),1))","v":1},1,0,1,1,1,1,0]
[223,{"$f":"VALUE(MID(DEC2BIN($A229,8),COLUMN(B227)-COLUMN($A229),1))","v":1},1,0,1,1,1,1,1]
[224,{"$f":"VALUE(MID(DEC2BIN($A230,8),COLUMN(B228)-COLUMN($A230),1))","v":1},1,1,0,0,0,0,0]
[225,{"$f":"VALUE(MID(DEC2BIN($A231,8),COLUMN(B229)-COLUMN($A231),1))","v":1},1,1,0,0,0,0,1]
[226,{"$f":"VALUE(MID(DEC2BIN($A232,8),COLUMN(B230)-COLUMN($A232),1))","v":1},1,1,0,0,0,1,0]
[227,{"$f":"VALUE(MID(DEC2BIN($A233,8),COLUMN(B231)-COLUMN($A233),1))","v":1},1,1,0,0,0,1,1]
[228,{"$f":"VALUE(MID(DEC2BIN($A234,8),COLUMN(B232)-COLUMN($A234),1))","v":1},1,1,0,0,1,0,0]
[229,{"$f":"VALUE(MID(DEC2BIN($A235,8),COLUMN(B233)-COLUMN($A235),1))","v":1},1,1,0,0,1,0,1]
[230,{"$f":"VALUE(MID(DEC2BIN($A236,8),COLUMN(B234)-COLUMN($A236),1))","v":1},1,1,0,0,1,1,0]
[231,{"$f":"VALUE(MID(DEC2BIN($A237,8),COLUMN(B235)-COLUMN($A237),1))","v":1},1,1,0,0,1,1,1]
[232,{"$f":"VALUE(MID(DEC2BIN($A238,8),COLUMN(B236)-COLUMN($A238),1))","v":1},1,1,0,1,0,0,0]
[233,{"$f":"VALUE(MID(DEC2BIN($A239,8),COLUMN(B237)-COLUMN($A239),1))","v":1},1,1,0,1,0,0,1]
[234,{"$f":"VALUE(MID(DEC2BIN($A240,8),COLUMN(B238)-COLUMN($A240),1))","v":1},1,1,0,1,0,1,0]
[235,{"$f":"VALUE(MID(DEC2BIN($A241,8),COLUMN(B239)-COLUMN($A241),1))","v":1},1,1,0,1,0,1,1]
[236,{"$f":"VALUE(MID(DEC2BIN($A242,8),COLUMN(B240)-COLUMN($A242),1))","v":1},1,1,0,1,1,0,0]
[237,{"$f":"VALUE(MID(DEC2BIN($A243,8),COLUMN(B241)-COLUMN($A243),1))","v":1},1,1,0,1,1,0,1]
[238,{"$f":"VALUE(MID(DEC2BIN($A244,8),COLUMN(B242)-COLUMN($A244),1))","v":1},1,1,0,1,1,1,0]
[239,{"$f":"VALUE(MID(DEC2BIN($A245,8),COLUMN(B243)-COLUMN($A245),1))","v":1},1,1,0,1,1,1,1]
[240,{"$f":"VALUE(MID(DEC2BIN($A246,8),COLUMN(B244)-COLUMN($A246),1))","v":1},1,1,1,0,0,0,0]
[241,{"$f":"VALUE(MID(DEC2BIN($A247,8),COLUMN(B245)-COLUMN($A247),1))","v":1},1,1,1,0,0,0,1]
[242,{"$f":"VALUE(MID(DEC2BIN($A248,8),COLUMN(B246)-COLUMN($A248),1))","v":1},1,1,1,0,0,1,0]
[243,{"$f":"VALUE(MID(DEC2BIN($A249,8),COLUMN(B247)-COLUMN($A249),1))","v":1},1,1,1,0,0,1,1]
[244,{"$f":"VALUE(MID(DEC2BIN($A250,8),COLUMN(B248)-COLUMN($A250),1))","v":1},1,1,1,0,1,0,0]
[245,{"$f":"VALUE(MID(DEC2BIN($A251,8),COLUMN(B249)-COLUMN($A251),1))","v":1},1,1,1,0,1,0,1]
[246,{"$f":"VALUE(MID(DEC2BIN($A252,8),COLUMN(B250)-COLUMN($A252),1))","v":1},1,1,1,0,1,1,0]
[247,{"$f":"VALUE(MID(DEC2BIN($A253,8),COLUMN(B251)-COLUMN($A253),1))","v":1},1,1,1,0,1,1,1]
[248,{"$f":"VALUE(MID(DEC2BIN($A254,8),COLUMN(B252)-COLUMN($A254),1))","v":1},1,1,1,1,0,0,0]
[249,{"$f":"VALUE(MID(DEC2BIN($A255,8),COLUMN(B253)-COLUMN($A255),1))","v":1},1,1,1,1,0,0,1]
[250,{"$f":"VALUE(MID(DEC2BIN($A256,8),COLUMN(B254)-COLUMN($A256),1))","v":1},1,1,1,1,0,1,0]
[251,{"$f":"VALUE(MID(DEC2BIN($A257,8),COLUMN(B255)-COLUMN($A257),1))","v":1},1,1,1,1,0,1,1]
[252,{"$f":"VALUE(MID(DEC2BIN($A258,8),COLUMN(B256)-COLUMN($A258),1))","v":1},1,1,1,1,1,0,0]
[253,{"$f":"VALUE(MID(DEC2BIN($A259,8),COLUMN(B257)-COLUMN($A259),1))","v":1},1,1,1,1,1,0,1]
[254,{"$f":"VALUE(MID(DEC2BIN($A260,8),COLUMN(B258)-COLUMN($A260),1))","v":1},1,1,1,1,1,1,0]
[255,{"$f":"VALUE(MID(DEC2BIN($A261,8),COLUMN(B259)-COLUMN($A261),1))","v":1},1,1,1,1,1,1,1]

{"sheet":"Schaltelemente","index":2,"n_rows":23,"n_cols":16,"rows_kept":23,"cut":false,"hidden":false,"merged":[]}
[]
[]
[]
[null,null,null,0,"E1",null,null,null,null,null,null,0,"E1"]
[null,"AND",null,null,null,"&","A",{"$f":"IF(AND(D4=1,D6=1),1,0)","v":0},null,"NAND",null,null,null,"&!","A",{"$f":"IF(AND(L4=1,L6=1),0,1)","v":1}]
[null,null,null,0,"E2",null,null,null,null,null,null,0,"E2"]
[]
[]
[]
[null,null,null,0,"E1",null,null,null,null,null,null,0,"E1"]
[null,"OR",null,null,null,">=1","A",{"$f":"IF(OR(D10=1,D12=1),1,0)","v":0},null,"NOR",null,null,null,">=1!","A",{"$f":"IF(OR(L10=1,L12=1),0,1)","v":1}]
[null,null,null,0,"E2",null,null,null,null,null,null,0,"E2"]
[]
[]
[]
[null,null,null,0,"E1",null,null,null,null,null,null,0,"E1"]
[null,"XOR",null,null,null,"=1","A",{"$f":"IF(D16+D18=1,1,0)","v":0},null,"NXOR",null,null,null,"=1!","A",{"$f":"IF(L16+L18=1,0,1)","v":1}]
[null,null,null,0,"E2",null,null,null,null,null,null,0,"E2"]
[]
[]
[]
[null,"NOT",null,1,"E","!","A",{"$f":"IF(D22=1,0,1)","v":0}]
[null,null,null,null,null,null,null,null,null,"Radierer"]